Workbook

Sheet At a glance
B2: SOCIAL SECURITY
B4: Gerbrandt van Heerden
B6: At a glancea
B7: All social services expenditure | C7: R1 325.2bn
B8: Social protection expenditure | C8: R273.8bn
B9: Number of social grants (2024) | C9: 19.14m
B10: Child support grant recipients (2024) | C10: 13.22m
B11: Children receiving child support grants as a proportion of all children (2022) | C11: 0.63
B12: Old-age pension recipients (2024) | C12: 4.04m
B13: Disability grant recipients (2024) | C13: 1.06m
B14: Foster care grant recipients (2024) | C14: 0.25m
B15: Change in number of old-age pension recipients (1998/99-2023/24) | C15: 1.468
B16: Change in number of disability grant recipients (1998/99-2023/24) | C16: 0.484
B17: Total social grants as a proportion of national population | C17: 0.309
B18: Child support grants as a proportion of total grants (2024) | C18: 0.691
B19: Old-age pensions as a proportion of total grants (2024) | C19: 0.211
B20: Disability grants as a proportion of total grants (2024) | C20: 0.055
B21: Child support grant expenditure as a proportion of total grant expenditure | C21: 0.296
B22: Old-age pension expenditure as a proportion of total grant expenditure | C22: 0.36
B23: Disability grant expenditure as a proportion of total grant expenditure | C23: 0.099
B24: Annual grant expenditure | C24: R283.0bn
B25: Social grant expenditure as a proportion of total government expenditure | C25: 0.125
B26: Social grant expenditure as a proportion of GDP | C26: 0.036
B27: Monthly value of the child support grant (April 2024) | C27: 530
B28: Monthly value of the old-age pension (April 2024) | C28: 2185
B29: Monthly value of the disability grant (April 2024) | C29: 2185
B30: Social grant dependency ratio (2023) | C30: 62 to 100
B31: Old-age pension recipients as a proportion of people aged 60+ (2022/23) | C31: `67.2%
B32: a Figures are for 2023/24 unless otherwise stated.

Sheet SOCIAL SERVICES

Sheet Expenditure

Sheet Social serv. exp. by type.94-24
A2: SOCIAL SERVICES
A4: Expenditure
A6: Social services expenditure, 1994/95 and 2023/24
A8: Expenditure allocation | B8: 1994/95 | C8: 2023/24 | D8: 1994/95 | E8: 2023/24
B9: —Rbn— | D9: —Proportion—
A10: Education and related functionsa | B10: 30.85 | C10: 462.4 | D10: 0.4889064976 | E10: =(C10/Total1218) -> 0.3489284636 | H10: =(C10/Total2168) -> 0.2132054592
A11: Healthb | B11: 14.3 | C11: 263.2 | D11: 0.2266244057 | E11: =(C11/Total1218) -> 0.1986115303 | H11: =(C11/Total2168) -> 0.1213574327
A12: Social protectionc | B12: 13 | C12: 376.9 | D12: 0.206022187 | E12: =(C12/Total1218) -> 0.2844099004 | H12: =(C12/Total2168) -> 0.173782737
A13: Housing and community amenitiesd | B13: 4.3 | C13: 207.1 | D13: 0.06814580032 | E13: =(C13/Total1218) -> 0.1562782976 | H13: =(C13/Total2168) -> 0.09549059388
A14: Recreation and culture | B14: 0.6 | C14: 15.6 | D14: 0.01 | E14: =(C14/Total1218) -> 0.01177180803 | H14: =(C14/Total2168) -> 0.007192917743
A15: Totale | B15: 63.1 | C15: =SUM(C10:C14) -> 1325.2 | D15: 1 | E15: =SUM(E10:E14) -> 1 | G15: 2168.8
A16: Source: National Treasury, Budget Review 2024, 21 February 2024, Table 8, p216
A17: a Includes basic education, university transfers, National Student Financial Aid Scheme, education administration, skills development levy institutions and technical and vocational education and training.
A18: b Includes district, provincial, central and other health services, and facilities management and maintenance.
A19: c Includes all social grants, provincial social development, policy oversight and grant administration. | J19: .
A20: d Includes municipal equitable share, human settlements, water and electrification programmes, public transport and other human settlements and municipal infrastructure.
A21: e Figures may not add up vertically, owing to rounding.

Sheet Socialserv.exp. by type%.95-24
B2: Social services expenditure as a proportion of totala expenditure, 1994/95 and 2023/24
B4: Expenditure allocation | C4: 1994/95 | D4: 2023/24
B5: Education and related functionsb | C5: 0.22 | D5: 0.204
B6: Healthc | C6: 0.102 | D6: 0.116
B7: Social protectiond | C7: 0.093 | D7: 0.166
B8: Housing and community amenitiese | C8: 0.013 | D8: 0.091
B9: Recreation and culture | C9: 0.005 | D9: 0.007
B10: Total | C10: 0.45 | D10: =SUM(D5:D9) -> 0.584
B11: Source: National Treasury, Budget Review 1997, March 1997; Budget Review 2024, 21 February 2024, Table 8, p216
B12: a Consolidated government expenditure.
B13: b Includes basic education, university transfers, National Student Financial Aid Scheme, education administration, skills development levy institutions and technical and vocational education and training.
B14: c Includes district, provincial, central and other health services, and facilities management and maintenance.
B15: d Includes all social grants, provincial social development, policy oversight and grant administration.
B16: e Includes municipal equitable share, human settlements, water and electrification programmes, public transport and other human settlements and municipal infrastructure.

Sheet Social protection

Sheet Budgeted social prot. exp.23.24
B2: Budgeted social protectiona expenditure, 2020/21-2026/27
B4: Expenditure type | C4: Allocation | E4: 2023/24 | F4: 2024/25 | G4: 2025/26
B5: Consolidated national and provincial (2024/25) | C5: R395.5bn | E5: 385.6 | F5: 368.8 | G5: 364.6 | I5: 385.6
B6: Proportion of total government expenditure (2024/25) | C6: 0.167 | E6: 7005.7 | F6: 7452.4 | G6: 7938.5 | I6: 285.6
B7: Proportion of GDP (2024/25) | C7: 0.053
B8: Projected proportion of GDP (2025/26) | C8: 0.05
B9: Projected proportion of GDP (2026/27) | C9: 0.048
B10: Change in social protection expenditure 2020/21-2024/25 | C10: 0.063
B11: Source: National Treasury, Budget Review 2024, 21 February 2024, Table 8, p216; CRA calculations
B12: a Social protection covers services supplied directly to communities, households or individuals, and includes transfers for sickness and disability, old age, survivors, family and children, unemployment, support to households to meet the cost of housing, and related research and development.

Sheet Social prot. expend.23.24
B2: Social protectiona expenditure, 2023/24
B4: Expenditure allocation | C4: Rbnb | D4: Proportionc
B5: Social grants, of which: | C5: 251 | D5: =(Total224/Total255) -> 0.9167275383
B6: — Child support | C6: 81 | D6: =(C6/Total255) -> 0.2958363769
B7: — Old-age | C7: 98.6 | D7: 0.3601168736
B8: — Disability | C8: 27.2 | D8: 0.09934258583
B9: — Foster care | C9: 4 | D9: 0.0146092038
B10: — Care dependency | C10: 4.1 | D10: 0.01497443389
B11: — Grant-in-aid | C11: 2.2 | D11: 0.008035062089
B12: — Social Relief of Distress | C12: 33.9 | D12: 0.1238130022
B13: Women, youth and persons with disabilities | C13: 1 | D13: 0.00365230095
B14: Provincial social development | C14: 21.8 | D14: 0.0796201607
B15: Total | C15: =(Total224+C13+C14) -> 273.8 | D15: =(D5+D13+D14) -> 1
B16: Source: National Treasury, Budget Review 2024, 21 February 2024, Table 5.6, p53
B17: a Social protection covers services supplied directly to communities, households or individuals, and includes transfers for sickness and disability, old age, survivors, family and children, unemployment, support to households to meet the cost of housing, and related research and development.
B18: b Figures should add up vertically but may not, owing to rounding.
B19: c Refers to spending under each allocation as a proportion of total social protection expenditure. Actual numbers and proportions are given by the source and do not necessarily add up vertically.

Sheet Basic educationexpenditure23.24
B2: Basic education expenditure, 2023/24
B4: Expenditure allocation | C4: Rbna | D4: Proportionb
B5: Arts, sports, recreation and culture | C5: 11.8 | D5: =(C5/Total298) -> 0.03439230545
B6: Basic education, of which: | C6: =SUM(C7:C12) -> 331.3 | D6: =SUM(D7:D12) -> 0.9656076945
B7: — Compensation of employeesc | C7: 235.3 | D7: 0.6858058875
B8: — Goods and servicesd | C8: 15.4 | D8: 0.04488487321 | G8: 6147 | H8: 15.426
B9: — Transfers and subsidiese | C9: 28.6 | D9: 0.08335762168 | G9: 9279
B10: — Education infrastructuref | C10: 13.8 | D10: 0.04022150976
B11: — Early childhood development | C11: 9.6 | D11: 0.02798018071 | G11: Delete 'grant' and insert 9.6
B12: — Subsidies to school | C12: 28.6 | D12: =(C12/Total298) -> 0.08335762168 | G12: 9.638
B13: Total | C13: =(Total231+C5) -> 343.1 | D13: 1
B14: Source: National Treasury, Budget Review 2024, 21 February 2024, Table 5.5, p52
B15: a Figures should add up vertically but may not, owing to rounding.
B16: b Refers to spending under each allocation as a proportion of total learning and culture expenditure. Actual numbers and proportions are given by the source and do not necessarily add up vertically.
B17: c Includes provincial compensation of employees.
B18: d Includes property payments, workbooks, learner and teacher support material and national school nutrition programme.
B19: e Includes subsidies to schools.
B20: f Includes education infrastructure backlog grant and school infrastructure backlogs grant.

Sheet Post-school edu&train.23.24
B2: Post-school education and training expenditure, 2023/24
B4: Expenditure allocation | C4: Rbna | D4: Proportionb
B5: University subsidiesc | C5: 44 | D5: =(C5/Table129) -> 0.3081232493
B6: National Student Financial Aid Scheme (NSFAS)d | C6: 58.8 | D6: =(C6/Table129) -> 0.4117647059
B7: Technical Vocational Education and Traininge | C7: 12.7 | D7: =(C7/Table129) -> 0.08893557423
B8: Community Education and Traininge | C8: 2.7 | D8: =(C8/Table129) -> 0.01890756303
B9: Skills Development Levy institutionsf | C9: 26.2 | D9: =(C9/Table129) -> 0.1834733894
B10: Total | C10: 142.8 | D10: 1
B11: Source: National Treasury, Budget Review 2024, 21 February 2024, Table 5.5, p52
B12: a Figures should add up vertically but may not, owing to rounding.
B13: b Refers to spending under each allocation as a proportion of total post-school education and training expenditure. Actual numbers and proportions are given by the source and do not necessarily add up vertically.
B14: c Includes university infrastructure.
B15: d Total payments made from all income sources including Funza Lushaka teacher bursaries and debt repayments from students.
B16: e Includes compensation of employees.
B17: f Includes direct charges from the National Revenue Fund and spending of the 21 Sector Education and Training Authorities (Setas), and the National Skills Fund.

Sheet Health expenditure.23.24
B2: Health expenditure, 2023/24
B4: Expenditure allocation | C4: Rbna | D4: Proportionb
B5: Central hospital services | C5: 51.8 | D5: =(C5/Total191) -> 0.1940074906
B6: Provincial hospital services | C6: 43.9 | D6: 0.1644194757
B7: District health servicesc | C7: 119.5 | D7: 0.4475655431
B8: Emergency medical services | C8: 9.8 | D8: 0.03670411985
B9: Facilities management and maintenance | C9: 10.6 | D9: 0.03970037453
B10: Health science and training | C10: 5.8 | D10: 0.02172284644
B11: National Health Laboratory Service | C11: 13.8 | D11: 0.05168539326
B12: National Department of Healthd | C12: 5.8 | D12: 0.02172284644
B13: Total | C13: 267 | D13: 1
B14: Source: National Treasury, Budget Review 2024, 21 February 2024, Table 5.8, p55
B15: a Figures should add up vertically but may not, owing to rounding.
B16: b Refers to spending under each allocation as a proportion of total health expenditure. Both actual numbers and proportions are given by the source and do not necessarily add up vertically.
B17: c Includes HIV, TB, malaria and community outreach.
B18: d Excludes grants and transfers reflected as expenditure in appropriate sub-functional areas.

Sheet Hum.settle&mun.23.24
C2: Human settlements and municipal infrastructure expenditure, 2023/24
C4: Expenditure allocation | D4: Rbna | E4: Proportionb
C5: Human settlements | D5: 36.7 | E5: =(D5/Jerry) -> 0.1459244533
C6: Public transport, including commuter rail | D6: 54.2 | E6: 0.2155069583
C7: Municipal equitable share | D7: 92.7 | E7: 0.3685884692
C8: Municipal infrastructure grant | D8: 16.3 | E8: 0.0648111332
C9: Regional and local water and sanitation services | D9: 15 | E9: 0.05964214712
C10: Electrification programmes | D10: 5.8 | E10: 0.02306163022
C11: Other/unspecifiedc | D11: =(Jerry-G11) -> 30.8 | E11: 0.1224652087 | G11: 220.7
C12: Total | D12: 251.5 | E12: =SUM(E5:E11) -> 1
C13: Source: National Treasury, Budget Review 2024, 21 February 2024, Table 5.9, p56
C14: a Figures should add up vertically but may not, owing to rounding.
C15: b Refers to spending under each allocation as a proportion of total human settlements and municipal infrastructure expenditure. Actual numbers and proportions are given by the source and do not necessarily add up vertically.
C16: c CRA calculations.

Sheet Social grants

Sheet Social grants.
A2: Social grants
A4: Grant types and beneficiaries
A6: Social grants, 1996/97-2023/24
A8: Yeara | B8: Old-age pension | C8: War veterans | D8: Disability | E8: Grant-in-aid | F8: Care dependency | G8: Foster care | H8: Child support | I8: Total
A9: 1996/97 | B9: 1637934 | C9: 13473 | D9: 711629 | E9: — | F9: 2707 | G9: 42999 | H9: — | I9: 2408742
A10: 1997/98 | B10: 1697725 | C10: 10525 | D10: 660528 | E10: 9183 | F10: 8172 | G10: 43520 | H10: — | I10: =SUM(B10:H10) -> 2429653
A11: 1998/99 | B11: 1812695 | C11: 9197 | D11: 633778 | E11: 8496 | F11: 16835 | G11: 46496 | H11: 21997 | I11: 2549494
A12: 1999/2000 | B12: 1848726 | C12: 7908 | D12: 607537 | E12: 8570 | F12: 22789 | G12: 49843 | H12: 150366 | I12: 2695739
A13: 2000/01 | B13: 1900406 | C13: 5617 | D13: 655822 | E13: 10107 | F13: 33574 | G13: 66967 | H13: 1111612 | I13: 3784105
A14: 2001/02 | B14: 1903042 | C14: 5336 | D14: 694232 | E14: 10332 | F14: 34978 | G14: 67817 | H14: 1277396 | I14: 3993133
A15: 2002/03 | B15: 1943348 | C15: 4638 | D15: 840424 | E15: 12625 | F15: 42335 | G15: 83574 | H15: 1998936 | I15: 4925880
A16: 2003/04 | B16: 2050572 | C16: 3996 | D16: 1228231 | E16: 17528 | F16: 76494 | G16: 120571 | H16: 2996723 | I16: 6494115
A17: 2004/05 | B17: 2124984 | C17: 2963 | D17: 1293280 | E17: 25667 | F17: 86917 | G17: 195454 | H17: 4165545 | I17: 7894810
A18: 2005/06 | B18: 2146344 | C18: 2817 | D18: 1315143 | E18: 26960 | F18: 90112 | G18: 317434 | H18: 7075266 | I18: 10974076
A19: 2006/07 | B19: 2195018 | C19: 2340 | D19: 1422808 | E19: 31918 | F19: 98631 | G19: 400503 | H19: 7863841 | I19: 12015059
A20: 2007/08 | B20: 2229550 | C20: 1924 | D20: 1408456 | E20: 37343 | F20: 102292 | G20: 454199 | H20: 8189975 | I20: 12423739
A21: 2008/09 | B21: 2390543 | C21: 1500 | D21: 1286883 | E21: 46069 | F21: 107065 | G21: 474759 | H21: 8765354 | I21: 13072173
A22: 2009/10 | B22: 2546657 | C22: 1216 | D22: 1264477 | E22: 53237 | F22: 110731 | G22: 510760 | H22: 9570287 | I22: 14057365
A23: 2010/11 | B23: 2678554 | C23: 958 | D23: 1200898 | E23: 58413 | F23: 112185 | G23: 512874 | H23: 10371950 | I23: 14935832
A24: 2011/12 | B24: 2750857 | C24: 753 | D24: 1198131 | E24: 66493 | F24: 114993 | G24: 536747 | H24: 10927731 | I24: 15595705
A25: 2012/13 | B25: 2873197 | C25: 587 | D25: 1164192 | E25: 73719 | F25: 120268 | G25: 532159 | H25: 11341988 | I25: 16106110
A26: 2013/14 | B26: 2969933 | C26: 429 | D26: 1120419 | E26: 83059 | F26: 120632 | G26: 512055 | H26: 11125946 | I26: 15932473
A27: 2014/15 | B27: 3086851 | C27: 326 | D27: 1112663 | E27: 113087 | F27: 126777 | G27: 499774 | H27: 11703165 | I27: 16642643
A28: 2015/16 | B28: 3194087 | C28: 245 | D28: 1085541 | E28: 137806 | F28: 131040 | G28: 470015 | H28: 11972900 | I28: 16991634
A29: 2016/17 | B29: 3302202 | C29: 176 | D29: 1067176 | E29: 164349 | F29: 144952 | G29: 440295 | H29: 12081375 | I29: 17200525
A30: 2017/18 | B30: 3423337 | C30: 134 | D30: 1061866 | E30: 192091 | F30: 147467 | G30: 416016 | H30: 12269094 | I30: 17509995
A31: 2018/19 | B31: 3553137 | C31: 92 | D31: 1048255 | E31: 221989 | F31: 150001 | G31: 386019 | H31: 12452072 | I31: 17811745
A32: 2019/20 | B32: 3676791 | C32: 62 | D32: 1042025 | E32: 273922 | F32: 154735 | G32: 355609 | H32: 12787448 | I32: 18290592
A33: 2020/21b | B33: 3711169 | C33: 27 | D33: 1054288 | E33: 272637 | F33: 148295 | G33: 342318 | H33: 12910451 | I33: =SUM(B33:H33) -> 18439185
A34: 2021/22c | B34: 3782522 | C34: 25 | D34: 1015315 | E34: 287259 | F34: 153746 | G34: 301806 | H34: 13164611 | I34: =SUM(B34:H34) -> 18705284
A35: 2022/23d | B35: 3886708 | C35: 15 | D35: 1035437 | E35: 328507 | F35: 156982 | G35: 274130 | H35: 13147937 | I35: =SUM(B35:H35) -> 18829716
A36: 2023/24e | B36: 4041763 | C36: 9 | D36: 1056270 | E36: 401761 | F36: 165764 | G36: 253256 | H36: 13218701 | I36: =SUM(B36:H36) -> 19137524
B37: =(B36/I36) -> 0.2111957116 | C37: =(C36/Total19137) -> 4.702802724e-07 | D37: 0.05519366037 | E37: 0.02099336361 | F37: 0.008661726564 | G37: 0.01323347785 | H37: 0.6907215897
A38: Source: The Presidency, Development Indicators 2008, p28; SASSA, Fact Sheet: Issue no. 1 of 2022, 30 April 2022, Issue no. 3 of 2024, 31 March 2024
A39: a As at 31 March of each year.
A40: b As at 30 September 2021.
A41: c As at 30 April 2022.
A42: d As at 31 March 2023.
A43: e As at 31 March 2024.
A44: Old-age pensions provide income support to persons above the age of 60 earning an annual income below R97 320 (R8 110 per month) if single and R194 640 (R16 220 per month) if married, and whose assets do not exceed R1 379 400 if single and R2 758 800 if married. Beneficiaries must not be maintained or cared for in a state institution, and should not be in receipt of another social grant.
A45: War veterans grants provide income support to persons who fought in World War II and/or the Korean War earning an annual income below R97 320 (R8 110 per month) if single and R194 640 (R16 220 per month) if married, and whose assets do not exceed R1 379 400 if single and R2 758 800 if married. Beneficiaries must not be maintained or cared for in a state institution, and should not be in receipt of another social grant.
A46: Disability grants provide income support for persons with permanent or temporary disabilities earning an annual income below earning an annual income below R97 320 (R8 110 per month) if single and R194 640 (R16 220 per month) if married, and whose assets do not exceed R1 379 400 if single and R2 758 800 if married. Beneficiaries must not be maintained or cared for in a state institution, and should not be in receipt of another social grant.
A47: Foster care grants are for children placed in foster care through court orders in terms of the Children’s Act of 2005.
A48: Care dependency grants provide income support to parents and caregivers supporting a child who is mentally or physically disabled where they earn an annual income below R250 800 (R20 900 per month) if single and R501 600 (R41 800 per month) if married.
A49: Child support grants provide income support to primary caregivers of children under the age of 18 where the caregiver earns an annual income below R61 200 (R5 100 per month) if single and R122 400 (R10 200 per month) if married.
A50: The grant-in-aid is an additional grant to the recipients of the old-age pension, disability grant, and war veterans grant who require regular attendance from another person owing to their physical or mental condition.
A51: All beneficiaries of social grants must be South African citizens or permanent residents, and must be resident in South Africa.

Sheet Change in social grants year
A2: Change in social grants (year-on-year), 1998/99-2023/24
A4: Yeara | B4: Old Age | C4: Old-age pension | D4: War veteran | E4: War veterans | F4: Disability | G4: Disability | H4: Grant in Aid | I4: Grant-in-aid | J4: Care Dependency | K4: Care dependency | L4: Foster Child | M4: Foster care | N4: Child Support | O4: Child support | P4: Total | Q4: Total
A5: 1998/99 | B5: 1812695 | C5: — | D5: 9197 | E5: — | F5: 633778 | G5: — | H5: 8496 | I5: — | J5: 16835 | K5: — | L5: 46496 | M5: — | N5: 21997 | O5: — | P5: =SUM(B5:N5) -> 2549494 | Q5: —
A6: 1999/2000 | B6: 1848726 | C6: =(B6-B5)/B5 -> 0.01987703392 | D6: 7908 | E6: =(D6-D5)/D5 -> -0.1401543982 | F6: 607537 | G6: =(F6-F5)/F5 -> -0.04140408787 | H6: 8570 | I6: =(H6-H5)/H5 -> 0.008709981168 | J6: 22789 | K6: =(J6-J5)/J5 -> 0.3536679537 | L6: 49843 | M6: =(L6-L5)/L5 -> 0.07198468685 | N6: 150366 | O6: =(N6-N5)/N5 -> 5.83575033 | P6: 2695739.273 | Q6: =(P6-P5)/P5 -> 0.05736246984
A7: 2000/01 | B7: 1900406 | C7: =(B7-B6)/B6 -> 0.02795438589 | D7: 5617 | E7: =(D7-D6)/D6 -> -0.2897066262 | F7: 655822 | G7: =(F7-F6)/F6 -> 0.07947664093 | H7: 10107 | I7: =(H7-H6)/H6 -> 0.1793465578 | J7: 33574 | K7: =(J7-J6)/J6 -> 0.4732546404 | L7: 66967 | M7: =(L7-L6)/L6 -> 0.3435587746 | N7: 1111612 | O7: =(N7-N6)/N6 -> 6.392708458 | P7: 3784105.814 | Q7: =(P7-P6)/P6 -> 0.4037358331
A8: 2001/02 | B8: 1903042 | C8: 0.001387072026 | D8: 5336 | E8: -0.05002670465 | F8: 694232 | G8: 0.05856772112 | H8: 10332 | I8: 0.02226179875 | J8: 34978 | K8: 0.04181807351 | L8: 67817 | M8: 0.01269281885 | N8: 1277396 | O8: 0.1491383684 | P8: 3993133.087 | Q8: 0.05523822089
A9: 2002/03 | B9: 1943348 | C9: 0.02117977428 | D9: 4638 | E9: -0.1308095952 | F9: 840424 | G9: 0.2105809009 | H9: 12625 | I9: 0.2219318622 | J9: 42335 | K9: 0.2103322088 | L9: 83574 | M9: 0.232345872 | N9: 1998936 | O9: 0.5648522463 | P9: 4925880.766 | Q9: 0.2335879267
A10: 2003/04 | B10: 2050572 | C10: 0.05517488376 | D10: 3996 | E10: -0.1384217335 | F10: 1228231 | G10: 0.4614420816 | H10: 17528 | I10: 0.3883564356 | J10: 76494 | K10: 0.8068737451 | L10: 120571 | M10: 0.4426855242 | N10: 2996723 | O10: 0.4991590526 | P10: 6494117.016 | Q10: 0.3183666689
A11: 2004/05 | B11: 2124984 | C11: 0.03628841123 | D11: 2963 | E11: -0.2585085085 | F11: 1293280 | G11: 0.05296153574 | H11: 25667 | I11: 0.4643427659 | J11: 86917 | K11: 0.136259053 | L11: 195454 | M11: 0.6210697431 | N11: 4165545 | O11: 0.3900333798 | P11: 7894811.052 | Q11: 0.2156866026
A12: 2005/06 | B12: 2146344 | C12: 0.01005184039 | D12: 2817 | E12: -0.04927438407 | F12: 1315143 | G12: 0.01690507856 | H12: 26960 | I12: 0.05037596914 | J12: 90112 | K12: 0.03675920706 | L12: 317434 | M12: 0.6240854626 | N12: 7075266 | O12: 0.6985210819 | P12: 10974076.69 | Q12: 0.3900366476
A13: 2006/07 | B13: 2195018 | C13: 0.02267763229 | D13: 2340 | E13: -0.1693290735 | F13: 1422808 | G13: 0.08186562222 | H13: 31918 | I13: 0.1839020772 | J13: 98631 | K13: 0.09453790838 | L13: 400503 | M13: 0.261689044 | N13: 7863841 | O13: 0.1114551736 | P13: 12015059.48 | Q13: 0.09485834808
A14: 2007/08 | B14: 2229550 | C14: 0.01573198944 | D14: 1924 | E14: -0.1777777778 | F14: 1408456 | G14: -0.01008709538 | H14: 37343 | I14: 0.1699667899 | J14: 102292 | K14: 0.03711814744 | L14: 454199 | M14: 0.1340714052 | N14: 8189975 | O14: 0.04147260861 | P14: 12423739 | Q14: 0.03401394105
A15: 2008/09 | B15: 2390543 | C15: 0.07220874167 | D15: 1500 | E15: -0.2203742204 | F15: 1286883 | G15: -0.08631650545 | H15: 46069 | I15: 0.2336716386 | J15: 107065 | K15: 0.04666054041 | L15: 474759 | M15: 0.04526650213 | N15: 8765354 | O15: 0.0702540606 | P15: 13072173 | Q15: 0.05219314411
A16: 2009/10 | B16: 2546657 | C16: 0.06530482823 | D16: 1216 | E16: -0.1893333333 | F16: 1264477 | G16: -0.01741106223 | H16: 53237 | I16: 0.1555926979 | J16: 110731 | K16: 0.03424088171 | L16: 510760 | M16: 0.07583005272 | N16: 9570287 | O16: 0.09183120271 | P16: 14057365 | Q16: 0.07536558765
A17: 2010/11 | B17: 2678554 | C17: 0.0517922123 | D17: 958 | E17: -0.2121710526 | F17: 1200898 | G17: -0.05028086711 | H17: 58413 | I17: 0.09722561376 | J17: 112185 | K17: 0.01313092088 | L17: 512874 | M17: 0.004138930222 | N17: 10371950 | O17: 0.08376582646 | P17: 14935832 | Q17: 0.06249158359
A18: 2011/12 | B18: 2750857 | C18: 0.02699329564 | D18: 753 | E18: -0.2139874739 | F18: 1198131 | G18: -0.002304109092 | H18: 66493 | I18: 0.1383253728 | J18: 114993 | K18: 0.02503008424 | L18: 536747 | M18: 0.0465474951 | N18: 10927731 | O18: 0.05358500571 | P18: 15595705 | Q18: 0.04418053176
A19: 2012/13 | B19: 2873197 | C19: 0.04447341319 | D19: 587 | E19: -0.2204515272 | F19: 1164192 | G19: -0.02832661871 | H19: 73719 | I19: 0.1086730934 | J19: 120268 | K19: 0.04587235745 | L19: 532159 | M19: -0.008547788809 | N19: 11341988 | O19: 0.03790878454 | P19: 16106110 | Q19: 0.03272727972
A20: 2013/14 | B20: 2969933 | C20: 0.03366841884 | D20: 429 | E20: -0.269165247 | F20: 1120419 | G20: -0.03759946813 | H20: 83059 | I20: 0.1266973236 | J20: 120632 | K20: 0.003026573985 | L20: 512055 | M20: -0.03777818284 | N20: 11125946 | O20: -0.01904798348 | P20: 15932473 | Q20: -0.01078081548
A21: 2014/15 | B21: 3086851 | C21: 0.03936721805 | D21: 326 | E21: -0.2400932401 | F21: 1112663 | G21: -0.006922410277 | H21: 113087 | I21: 0.3615261441 | J21: 126777 | K21: 0.05094004907 | L21: 499774 | M21: -0.02398375175 | N21: 11703165 | O21: 0.05188044235 | P21: 16642643 | Q21: 0.04457374571
A22: 2015/16 | B22: 3194087 | C22: 0.03473961004 | D22: 245 | E22: -0.2484662577 | F22: 1085541 | G22: -0.02437575438 | H22: 137806 | I22: 0.2185839221 | J22: 131040 | K22: 0.03362597317 | L22: 470015 | M22: -0.0595449143 | N22: 11972900 | O22: 0.02304803871 | P22: 16991634 | Q22: 0.02096968612
A23: 2016/17 | B23: 3302202 | C23: 0.03384848315 | D23: 176 | E23: -0.2816326531 | F23: 1067176 | G23: -0.01691783175 | H23: 164349 | I23: 0.1926113522 | J23: 144952 | K23: 0.1061660562 | L23: 440295 | M23: -0.06323202451 | N23: 12081375 | O23: 0.009060043933 | P23: 17200525 | Q23: 0.01229375586
A24: 2017/18 | B24: 3423337 | C24: 0.03668309813 | D24: 134 | E24: -0.2386363636 | F24: 1061866 | G24: -0.00497574908 | H24: 192091 | I24: 0.1687993234 | J24: 147467 | K24: 0.01735057122 | L24: 416016 | M24: -0.05514257486 | N24: 12269094 | O24: 0.01553788373 | P24: 17509995 | Q24: 0.01799189269
A25: 2018/19 | B25: 3553317 | C25: 0.03796880062 | D25: 92 | E25: -0.3134328358 | F25: 1048225 | G25: -0.01284625367 | H25: 221989 | I25: 0.1556449808 | J25: 150001 | K25: 0.01718350546 | L25: 386019 | M25: -0.07210539979 | N25: 12452072 | O25: 0.01491373365 | P25: 17811745 | Q25: 0.01723301463
A26: 2019/20 | B26: 3676791 | C26: 0.03474894022 | D26: 62 | E26: -0.3260869565 | F26: 1042025 | G26: -0.005914760667 | H26: 273922 | I26: 0.2339440243 | J26: 154735 | K26: 0.0315597896 | L26: 355609 | M26: -0.07877850572 | N26: 12787448 | O26: 0.02693334892 | P26: 18290592 | Q26: 0.02688377809
A27: 2020/21b | B27: 3711169 | C27: =(B27-B26)/B26 -> 0.009350001129 | D27: 27 | E27: =(D27-D26)/D26 -> -0.564516129 | F27: 1054288 | G27: =(F27-F26)/F26 -> 0.01176843166 | H27: 272637 | I27: =(H27-H26)/H26 -> -0.004691116449 | J27: 148295 | K27: =(J27-J26)/J26 -> -0.04161954309 | L27: 342318 | M27: =(L27-L26)/L26 -> -0.03737531952 | N27: 12910451 | O27: =(N27-N26)/N26 -> 0.009619042048 | P27: 18439185 | Q27: =(P27-P26)/P26 -> 0.008124012607
A28: 2021/22c | B28: 3782522 | C28: =(B28-B27)/B27 -> 0.01922655638 | D28: 25 | E28: =(D28-D27)/D27 -> -0.07407407407 | F28: 1015315 | G28: =(F28-F27)/F27 -> -0.03696618002 | H28: 287259 | I28: =(H28-H27)/H27 -> 0.05363175211 | J28: 153746 | K28: =(J28-J27)/J27 -> 0.03675781382 | L28: 301806 | M28: =(L28-L27)/L27 -> -0.1183460992 | N28: 13164611 | O28: =(N28-N27)/N27 -> 0.01968637656 | P28: 18705284 | Q28: =(P28-P27)/P27 -> 0.01443116927
A29: 2022/23d | B29: 3886708 | C29: 0.02754405658 | D29: 15 | E29: -0.4 | F29: 1035437 | G29: 0.01981847998 | H29: 328507 | I29: 0.1435916716 | J29: 156982 | K29: 0.02104770205 | L29: 274130 | M29: -0.09170129156 | N29: 13147937 | O29: -0.001266577493 | P29: 18829716 | Q29: 0.006652237945
A30: 20023/24e | B30: 4041763 | C30: 0.03989365808 | D30: 9 | E30: -0.4 | F30: 1056270 | G30: 0.0201200073 | H30: 401761 | I30: 0.2229906821 | J30: 165764 | K30: 0.05594271955 | L30: 253256 | M30: -0.07614635392 | N30: 13218701 | O30: 0.005382137137 | P30: =SUM(I30:O30) -> 13637721.21 | Q30: -0.2757340999
A31: Source: The Presidency, Development Indicators 2008, p28; SASSA, Fact Sheet: Issue no. 1 of 2022, 30 April 2022, Issue no. 3 of 2024, 31 March 2024
A32: a As at 31 March of each year.
A33: b As at 30 September 2021.
A34: c As at 30 April 2022.
A35: d As at 31 March 2023.
A36: e As at 31 March 2024.

Sheet Type of grant as a % of tot
C2: Type of grant as a proportion of totala, 2001-2023/24
C4: Type of grant | D4: 2001 | E4: 2005 | F4: 2010 | G4: 2023/24b
C5: Care dependency | D5: 0.01 | E5: 0.011 | F5: 0.009 | G5: 0.009
C6: Child support | D6: 0.23 | E6: 0.486 | F6: 0.681 | G6: 0.691
C7: Disability | D7: 0.19 | E7: 0.186 | F7: 0.094 | G7: 0.055
C8: Foster care | D8: 0.02 | E8: 0.02 | F8: 0.036 | G8: 0.013
C9: Grant-in-aid | D9: N/A | E9: N/A | F9: N/A | G9: 0.021
C10: Old-age pension | D10: 0.55 | E10: 0.295 | F10: 0.181 | G10: 0.211
C11: War veterans | D11: 0 | E11: 0 | F11: 0 | G11: 0
C12: Totalc | D12: 1 | E12: 1 | F12: 1 | G12: =SUM(G5:G11) -> 1
B13: Source: Department of Social Development, personal communication from Jane Jooste, 23 May 2005; National Treasury, Estimates of National Expenditure 2001, p404; SASSA, Fact Sheet: Issue no. 1 of 2022, 30 April 2022, Issue no. 3 of 2024, 31 March 2024
B14: a CRA calculations.
B15: b Figures as at March 2024.
B16: c Figures should add up vertically but may not, owing to rounding.
B17: N/A — Not available.

Sheet Type of grant as a%
A1: Type of grant as a proportion of total, 1998/99 and 2023/24
A3: Type of grant as a proportion of total grants,2001 and 2017
D5: 1998/99 | E5: 2023/24
B6: Old-age pension | C6: 1812695 | D6: =(C6/Total2549494) -> 0.7110018694 | E6: 0.211
B7: War veterans | C7: 9197 | D7: 0.003607382485 | E7: 0
B8: Disability | C8: 633778 | D8: 0.2485897202 | E8: 0.055
B9: Grant-in-aid | C9: 8496 | D9: 0.003332425964 | E9: 0.021
B10: Care dependency | C10: 16835 | D10: 0.00660327108 | E10: 0.009
B11: Foster care | C11: 46496 | D11: 0.01823734435 | E11: 0.013
B12: Child support | C12: 21997 | D12: 0.008627986573 | E12: 0.691
B13: Total | C13: =SUM(C6:C12) -> 2549494 | D13: 1

Sheet Social grant beneficiaries #
A2: Social grant beneficiariesa by province, 2022/23
A4: Province | B4: Number of beneficiaries | C4: Share of totalb | D4: Share of provincial populationc | E4: Share of national population | J4: Number of beneficiaries | K4: Share of totalb
A5: Eastern Cape | B5: 1731692 | C5: =(B5/Total11033505) -> 0.1471606706 | D5: =(B5/H5) -> 0.2595900506 | E5: =(H5/Total62283) -> 0.1088349649 | F5: 6676691 | H5: 6670872 | I5: Eastern Cape | J5: 1720429 | K5: 0.147
A6: Free State | B6: 679289 | C6: 0.05772656151 | D6: =(B6/H6) -> 0.2317284466 | E6: 0.04782567029 | F6: 2921611 | H6: 2931401 | I6: Free State | J6: 675744 | K6: 0.058
A7: Gauteng | B7: 1991698 | C7: 0.1692562033 | D7: 0.1213998822 | E7: 0.267664673 | F7: 16098571 | H7: 16406095 | I7: Gauteng | J7: 1959018 | K7: 0.169
A8: KwaZulu-Natal | B8: 2508288 | C8: 0.2131564644 | D8: 0.215513729 | E8: 0.1898839654 | F8: 11538325 | H8: 11638646 | I8: KwaZulu-Natal | J8: 2459911 | K8: 0.213
A9: Limpopo | B9: 1611822 | C9: 0.1369740152 | D9: 0.2695886479 | E9: 0.09754416882 | F9: 5941439 | H9: 5978820 | I9: Limpopo | J9: 1599249 | K9: 0.137
A10: Mpumalanga | B10: 975065 | C10: 0.08286185954 | D10: 0.2041855456 | E10: 0.07791021568 | F10: 4720497 | H10: 4775387 | I10: Mpumalanga | J10: 963201 | K10: 0.083
A11: North West | B11: 818065 | C11: 0.06951986496 | D11: 0.192817074 | E11: 0.06921945218 | F11: 4186984 | H11: 4242700 | I11: North West | J11: 807226 | K11: 0.07
A12: Northern Cape | B12: 308701 | C12: 0.0262336756 | D12: 0.2335991174 | E12: 0.02156019441 | F12: 1308734 | H12: 1321499 | I12: Northern Cape | J12: 303109 | K12: =(J12/Total11033505) -> 0.02575846265
A13: Western Cape | B13: 1142736 | C13: 0.09711068485 | D13: 0.1559401117 | E13: 0.1195566953 | F13: 7212142 | H13: 7328044 | I13: Western Cape | J13: 1130678 | K13: 0.097
A14: South Africad | B14: =SUM(B5:B13) -> 11767356 | C14: =SUM(C5:C13) -> 1 | D14: =(Total11033505/H14) -> 0.1919838631 | E14: 1 | F14: 60604992 | H14: =SUM(H5:H13) -> 61293464
A15: Source: SASSA, Social Assistance Report; December 2023, Table 8, p21, Statistics South Africa (Stats SA), Mid-year population estimates 2023 population projections, Statistical release P0302, 28 July 2023
A16: a As at April 2023.
A17: b CRA calculations. For example, in 2022/23, 14.7% of all grant beneficiaries in South Africa were living in the Eastern Cape.
A18: c CRA calculations. For example, in 2022/23, the number of grant beneficiaries in the Eastern Cape accounted for 26% of that province's population.
A19: d CRA calculations. Figures should add up vertically but may not, owing to rounding.

Sheet Social grants by province
A2: Social grants by provincea, 2022/23
A4: Province | B4: Numberb | C4: Share of total grantsc | D4: Share of provincial populationd | E4: Share of national populatione
A5: Eastern Cape | B5: 2874174 | C5: =(B5/Total18290) -> 0.1523505164 | D5: =(B5/I5) -> 0.4308543171 | E5: =(I5/Total62287590) -> 0.1088349649 | G5: 6676691 | I5: 6670872
A6: Free State | B6: 1053210 | C6: 0.05582720024 | D6: =(B6/I6) -> 0.359285543 | E6: 0.04782567029 | G6: 2921611 | I6: 2931401
A7: Gauteng | B7: 2955717 | C7: 0.1566728428 | D7: 0.1801596907 | E7: 0.267664673 | G7: 16098571 | I7: 16406095
A8: KwaZulu-Natal | B8: 4143475 | C8: 0.2196319903 | D8: 0.3560100548 | E8: 0.1898839654 | G8: 11538325 | I8: 11638646
A9: Limpopo | B9: 2720159 | C9: 0.1441866875 | D9: 0.4549658628 | E9: 0.09754416882 | G9: 5941439 | I9: 5978820
A10: Mpumalanga | B10: 1614556 | C10: 0.08558230657 | D10: 0.338099509 | E10: 0.07791021568 | G10: 4720497 | I10: 4775387
A11: North West | B11: 1312439 | C11: 0.06956807745 | D11: 0.3093405143 | E11: 0.06921945218 | G11: 4186984 | I11: 4242700
A12: Northern Cape | B12: 527460 | C12: 0.02795892086 | D12: 0.399137646 | E12: 0.02156019441 | G12: 1308734 | I12: 1321499
A13: Western Cape | B13: 1644345 | C13: 0.08716132355 | D13: 0.2243907105 | E13: 0.1195566953 | G13: 7212142 | I13: 7328044
A14: South Africa | B14: 18865535 | C14: 1 | D14: 0.3077903217 | E14: 1 | G14: 60604992 | I14: =SUM(I5:I13) -> 61293464
A15: Source: SASSA, Social Assistance Report; December 2023, Table 3, p11; Stats SA, Mid-year population estimates 2023 population projections, Statistical release P0302, 28 July 2023
A16: a As at April 2022/23.
A17: b Figures on grants are obtained from different sources. Therefore, there are discrepancies as a result of different source methodologies. However, these are only slight and the similarity in trends remains evident.
A18: c CRA calculations. For example, in 2022/23, 15.2% of all grants in South Africa were allocated to people living in the Eastern Cape.
A19: d CRA calculations. For example, in 2022/23, the number of grants in the Eastern Cape accounted for 43.1% of that province's population.
A20: e CRA calculations. Figures should add up vertically but may not, owing to rounding.

Sheet Population receiving social gra
B2: Population receiving social grants, relief assistance or social relief by race and province (actual numbers), 2023
B4: Province | C4: Black | D4: Coloured | E4: Indian/Asian | F4: White | G4: Totalb
B5: Eastern Cape | C5: 3220000 | D5: 207000 | E5: _a | F5: 28000 | G5: =SUM(C5:F5) -> 3455000
B6: Free State | C6: 1366000 | D6: 37000 | E6: _a | F6: 22000 | G6: 1424000
B7: Gauteng | C7: 4097000 | D7: 146000 | E7: 9000 | F7: 209000 | G7: 4461000
B8: KwaZulu-Natal | C8: 5246000 | D8: 40000 | E8: 177000 | F8: 26000 | G8: =SUM(C8:F8) -> 5489000
B9: Limpopo | C9: 3128000 | D9: _a | E9: _a | F9: 11000 | G9: 3141000
B10: Mpumalanga | C10: 2274000 | D10: 9000 | E10: _a | F10: 22000 | G10: 2306000
B11: North West | C11: 1897000 | D11: 15000 | E11: _a | F11: 25000 | G11: 1937000
B12: Northern Cape | C12: 281000 | D12: 259000 | E12: _a | F12: 9000 | G12: 549000
B13: Western Cape | C13: 567000 | D13: 1119000 | E13: 27000 | F13: 87000 | G13: 1800000
B14: South Africac | C14: =SUM(C5:C13) -> 22076000 | D14: 1833000 | E14: 215000 | F14: 438000 | G14: =SUM(C14:F14) -> 24562000
B15: Source: Stats SA, General Household Survey 2023, Statistical release P0318, 23 May 2024, Table 7.1, p114
B16: a Figures too small for reliable estimates.
B17: b Figures should add up vertically and horizontally but may not, owing to rounding.
B18: c Figures on grants are obtained from different sources. Therefore, there are discrepancies as a result of different source methodologies. However, these are only slight and the similarity in trends remains evident.

Sheet Metro households receiving
A2: Households receiving social grants by metropolitan area, 2015-22
A4: Metropolitan area | B4: 2015 | C4: 2019 | D4: 2020 | E4: 2021 | F4: 2022 | G4: Change 2015-22
A5: Buffalo City Metropolitan | B5: 0.432 | C5: 0.537 | D5: 0.542 | E5: 0.622 | F5: 0.566 | G5: =(F5-B5)/B5 -> 0.3101851852
A6: Cape Town Metropolitan | B6: 0.333 | C6: 0.326 | D6: 0.423 | E6: 0.373 | F6: 0.339 | G6: =(F6-B6)/B6 -> 0.01801801802
A7: Ekurhuleni Metropolitan | B7: 0.316 | C7: 0.338 | D7: 0.422 | E7: 0.366 | F7: 0.378 | G7: 0.1962025316
A8: eThekwini Metropolitan | B8: 0.403 | C8: 0.363 | D8: 0.4 | E8: 0.413 | F8: 0.449 | G8: 0.1141439206
A9: Johannesburg Metropolitan | B9: 0.291 | C9: 0.294 | D9: 0.391 | E9: 0.391 | F9: 0.351 | G9: 0.206185567
A10: Mangaung Metropolitan | B10: 0.416 | C10: 0.515 | D10: 0.425 | E10: 0.424 | F10: 0.569 | G10: 0.3677884615
A11: Nelson Mandela Bay Metropolitan | B11: 0.501 | C11: 0.45 | D11: 0.48 | E11: 0.48 | F11: 0.431 | G11: -0.1397205589
A12: Tshwane Metropolitan | B12: 0.309 | C12: 0.288 | D12: 0.343 | E12: 0.361 | F12: 0.358 | G12: 0.1585760518
A13: All metropolitan areas | B13: 0.341 | C13: 0.339 | D13: 0.405 | E13: 0.389 | F13: 0.387 | G13: =(F13-B13)/B13 -> 0.1348973607
A14: Source: Stats SA, General Household Survey 2015, Statistical release P0318, 2 June 2016, Figure 26, p27; General Household Survey 2018, Statistical release P0318, 28 May 2019, Figure 7.3, p31; General Household Survey 2019, Statistical release P0318, 17 December 2020, Figure 7.3, p31; General Household Survey 2020, Statistical release P0318, 2 December 2021, Figure 7.6, p29; General Household Survey 2022, Statistical release P0318, 17 August 2024, Figure 7.4, p30

Sheet Social grant ben.as%ofpop.96-23
B2: Social grants as a proportion of the total population, 1996-2022/23
B4: Year | C4: Numbera | D4: Proportionb | E4: Households benefitting from social grants
B5: 1996 | C5: 2420538 | D5: 0.06 | E5: N/A
B6: 1998/99 | C6: 2540998 | D6: 0.0590184488 | E6: N/A
B7: 2001 | C7: 3993133 | D7: 0.08961129338 | E7: N/A
B8: 2002 | C8: 4925900 | D8: 0.1083706236 | E8: N/A
B9: 2003 | C9: 6494115 | D9: 0.139869545 | E9: 0.299
B10: 2004 | C10: 7894810 | D10: 0.1694652285 | E10: 0.346
B11: 2005 | C11: 10974076 | D11: 0.2340477135 | E11: 0.374
B12: 2006 | C12: 12015059 | D12: 0.253530931 | E12: 0.376
B13: 2007 | C13: 12423739 | D13: 0.2596354703 | E13: 0.394
B14: 2008 | C14: 13072173 | D14: 0.2684941155 | E14: 0.425
B15: 2009 | C15: 14057365 | D15: 0.2850207317 | E15: 0.453
B16: 2010 | C16: 14935832 | D16: 0.2987686257 | E16: 0.443
B17: 2011 | C17: 15595705 | D17: 0.3012465965 | E17: 0.441 | I17: 6670872
B18: 2012 | C18: 16106110 | D18: 0.3081038271 | E18: 0.436 | I18: 2931401
B19: 2013 | C19: 15932473 | D19: 0.3007148788 | E19: 0.455 | I19: 16406095
B20: 2014 | C20: 16443196 | D20: 0.3044926171 | E20: 0.445 | I20: 11638646
B21: 2015 | C21: 16780488 | D21: 0.3053389455 | E21: 0.455 | I21: 5978820
B22: 2016 | C22: 17094331 | D22: 0.3057534972 | E22: 0.448 | I22: 4775387
B23: 2017 | C23: 17229386 | D23: 0.305 | E23: 0.438 | I23: 4242700
B24: 2018/19 | C24: 17811745 | D24: 0.309 | E24: 0.443 | I24: 1321499
B25: 2019/20 | C25: 18290592 | D25: 0.311 | E25: 0.455 | I25: 7328044
B26: 2020/21 | C26: 18439185 | D26: 0.307 | E26: 0.506 | I26: =SUM(I17:I25) -> 61293464
B27: 2021/22 | C27: 18705284 | D27: 0.309 | E27: 0.495
B28: 2022/23 | C28: 18865535 | D28: =(C28/I26) -> 0.3077903217 | E28: 0.499 | H28: =SUM(H19:H27) -> 0
B29: Source: National Treasury, Estimates of National Expenditure 2013, 24 February 2013; SASSA, Fact Sheet: Issue No. 2 of 2016, 29 February 2016; Fact sheet: Issue no.4 of 2018, 30 April 2018; SASSA, Fact Sheet: Issue no. 1 of 2022, 30 April 2022; Social Assistance Report; December 2023, Table 3, p11 Stats SA, General Household Survey 2023, Statistical release P0302, Figure 7.2, 23 May 2023
B30: a Figures on grants are obtained from different sources. Therefore, there are discrepancies as a result of different source methodologies. However, these are only slight and the similarity in trends remains evident.
B31: b CRA calculations.
B32: N/A — Not available.

Sheet Special SRD Grant
A2: Special Covid-19 Social Relief of Distress Grant (SRD)
A4: South Africa went into a nation-wide lockdown on 26 March 2020 and the loss of jobs and income for millions of South Africans saw the announcement and implementation of the Special Covid-19 Social Relief of Distress (SRD) grant for an initial period of 6 months, further extended until March 2025. The Minister of Finance, Enoch Godongwana, announced in 2024 that the value of the Covid-19 SRD grant will be hiked by 6% to R370 per month from April 2024.
A6: The criteria for receiving the grant are:
A7: — South African citizenship, permanent residence or valid refugee status.
A8: — residence within the borders of the Republic of South Africa.
A9: — above the age of 18.
A10: — unemployed.
A11: — not receiving any income.
A12: — not receiving any social grant.
A13: — not receiving any unemployment insurance benefit (UIF) and not qualifying to receive UIF.
A14: — not receiving a stipend from the National Student Financial Aid Scheme (NSFAS).
A15: — not receiving any other government Covid-19 response support.
A16: — not a resident in a government funded or subsidised institution.

Sheet SRD+ other grants
C2: Number of social grants including the Covid-19 Social Relief of Distress (SRD) grant, 2023/24 and 2024/25
C4: Grant | D4: 2023/24 | E4: 2024/25 | F4: Change
C5: Child support | D5: 13285000 | E5: 13450000 | F5: =(E5-D5)/D5 -> 0.01242002258
C6: Old age | D6: 4009000 | E6: 4141000 | F6: =(E6-D6)/D6 -> 0.03292591669
C7: Disability | D7: 1064000 | E7: 1088000 | F7: 0.02255639098
C8: Foster care | D8: 238000 | E8: 218000 | F8: -0.08403361345
C9: Care dependency | D9: 163000 | E9: 168000 | F9: 0.03067484663
C10: Covid-19 SRD | D10: 9023000 | E10: 9242000 | F10: 0.02427130666
C11: South Africa | D11: =SUM(D5:D10) -> 27782000 | E11: =SUM(E5:E10) -> 28307000 | F11: 0.01889712764
B12: Source: National Treasury, Budget Review 2024, 21 February 2024, Table 5.6, p53
B13: a The Covid-19 Social Relief of Distress (SRD) grant is valued at R370 per month.

Sheet Taxpayer employed and grants
A1: Number of social grants including the Covid-19 Social Relief of Distress (SRD) grant, 2023/24 and 2024/25 | E1: Registered taxpayers, people employed, and social grants including the Covid-19 SRD grant, 2023/24 and 2024/25
F2: 2023/24 | G2: 2024/25
A3: Year | B3: Registered individual taxpayer | C3: Employed | D3: Total grants | E3: Registered individual taxpayers | F3: 7122113 | G3: 7409406 | K3: Chart only
A4: 2023/24 | B4: 7122113 | C4: 16300000 | D4: 27782000 | E4: Employed | F4: 16300000 | G4: 16800000
A5: 2024/25 | B5: 7409406 | C5: 16800000 | D5: 28307000 | E5: Total grants | F5: 27782000 | G5: 28307000
A6: Source: National Treasury, Budget Review 2024, 21 February 2024, Table 5.6, p53; Budget Review 2024, 21 February 2024, Table 4.5, p40.

Sheet Value, Grants

Sheet Value of social grants.15-24
A2: Grant value
A4: Monthly valuea of social grants, April 2015-April 2024
A6: Type of grant | B6: April 2015 | C6: April 2019 | D6: April 2020 | E6: April 2021 | F6: April 2022 | G6: April 2023 | H6: April 2024 | I6: Change 2015-24
B7: —R—
A8: Care dependency | B8: 1410 | C8: 1780 | D8: 1860 | E8: 1890 | F8: 1985 | G8: 2085 | H8: 2185 | I8: =(H8-B8)/B8 -> 0.5496453901
A9: Child support | B9: 330 | C9: 425 | D9: 445 | E9: 460 | F9: 480 | G9: 505 | H9: 530 | I9: =(H9-B9)/B9 -> 0.6060606061
A10: Disability | B10: 1410 | C10: 1780 | D10: 1860 | E10: 1890 | F10: 1985 | G10: 2085 | H10: 2185 | I10: 0.5496453901
A11: Foster care | B11: 860 | C11: 1000 | D11: 1040 | E11: 1050 | F11: 1070 | G11: 1125 | H11: 1180 | I11: 0.3720930233
A12: Old-age pensionb | B12: 1410 | C12: 1780 | D12: 1860 | E12: 1890 | F12: 1985 | G12: 2085 | H12: 2185 | I12: 0.5496453901
A13: War veterans | B13: 1430 | C13: 1800 | D13: 1880 | E13: 1910 | F13: 2005 | G13: 2105 | H13: 2205 | I13: 0.541958042
A14: Source: National Treasury, Budget Review 2024, 21 February 2024, Table 5.7, p54
A15: a Grant amounts are adjusted according to inflation projections to maintain their real value.
A16: b The old-age grant amount for people above the age of 75 is R2 205.

Sheet Grant as % of gov exp. 01-24
B2: Social grants and government expenditure, 2001/02-2023/24
C4: Year | D4: Granta expenditure | E4: Consolidated government expenditure | F4: Grant expenditure as a proportion of total government expenditure
D5: —Rbn—
C6: 2001/02 | D6: 32 | E6: 257 | F6: 0.1245136187
C7: 2011 | D7: 98 | E7: 979 | F7: 0.100102145
C8: 2012 | D8: 105 | E8: 1060 | F8: 0.09905660377
C9: 2013 | D9: 113 | E9: 1150 | F9: 0.09826086957
C10: 2014 | D10: 121 | E10: 1250 | F10: 0.0968
C11: 2015 | D11: 147 | E11: 1350 | F11: 0.1088888889
C12: 2016 | D12: 154 | E12: 1381 | F12: 0.1115133961
C13: 2017 | D13: 165 | E13: 1445 | F13: 0.1141868512
C14: 2018 | D14: 178 | E14: 1558 | F14: =(D14/E14) -> 0.1142490372
C15: 2019 | D15: 193 | E15: 1665 | F15: =D15/E15 -> 0.1159159159
C16: 2020 | D16: 208 | E16: 1844 | F16: 0.1127982646
C17: 2021 | D17: 257 | E17: 2052 | F17: 0.1252436647
C18: 2021/22 | D18: 259 | E18: 2077 | F18: 0.1246990852
C19: 2022/23 | D19: 264 | E19: 2169 | F19: 0.1217150761
C20: 2023/24 | D20: 283 | E20: 2269 | F20: 0.1247245483
C21: Source: South Africa Survey 2001/02; National Treasury, Budget Review 2010, February 2010; Budget Review 2011, February 2011; Budget Review 2012, February 2012; Budget Review 2013, February 2013; Budget Review 2014, February 2014; Budget Review 2019, 20 February 2019, Table 5.6, p54; Budget Review 2021, 24 February 2021, Table 5.6, p58; Budget Review 2024, 21 February 2024, Table 5.3, p49
C22: a Excludes South African Social Security Authority administration costs.

Sheet Grants as % of GDP.23-27
D2: Social grant expenditure and GDP, 2023/24-2026/27
D4: Year | E4: Grant expenditure Rbn | F4: As a proportion of GDP
D5: 2023/24 | E5: 251 | F5: =(E5/H5) -> 0.03560788764 | H5: 7049
D6: 2024/25a | E6: 266 | F6: =(E6/H6) -> 0.03569511541 | H6: 7452
D7: 2025/26a | E7: 248 | F7: 0.03133687137 | H7: 7914
D8: 2026/27a | E8: 260 | F8: 0.03087152695 | H8: 8422
C9: Source: National Treasury, Budget Review 2024, 21 February 2024, Table 5.6, p53
C10: a Estimates.

Sheet Value real and nominal of child
A2: Value (real and nominal) of child support grants, 2001-2024
B4: Year | C4: Amount paid per month | D4: Year-on-year increase | E4: Consumer Price Indexa | F4: Real monthly value (in line with inflation)bc
C5: R | F5: R
B6: 2001 | C6: 110 | D6: 0.1 | E6: 33.8 | F6: =(C6/E6)*100 -> 325.443787
B7: 2002 | C7: 130 | D7: 0.182 | E7: 36.9 | F7: =(C7/E7)*100 -> 352.303523
B8: 2003 | C8: 160 | D8: 0.231 | E8: 39.1 | F8: 409.2071611
B9: 2004 | C9: 170 | D9: 0.063 | E9: 39.6 | F9: 429.2929293
B10: 2005 | C10: 180 | D10: 0.059 | E10: 41 | F10: 439.0243902
B11: 2006 | C11: 190 | D11: 0.056 | E11: 42.9 | F11: 442.8904429
B12: 2007 | C12: 200 | D12: 0.053 | E12: 45.9 | F12: 435.7298475
B13: 2008 | C13: 210 | D13: 0.05 | E13: 51.2 | F13: 410.15625
B14: 2009 | C14: 240 | D14: 0.143 | E14: 54.6 | F14: 439.5604396
B15: 2010 | C15: 250 | D15: 0.042 | E15: 56.9 | F15: 439.3673111
B16: 2011 | C16: 260 | D16: 0.04 | E16: 59.8 | F16: 434.7826087
B17: 2012 | C17: 280 | D17: 0.077 | E17: 63.1 | F17: 443.7400951
B18: 2013 | C18: 300 | D18: 0.071 | E18: 66.8 | F18: 449.1017964
B19: 2014 | C19: 320 | D19: =(C19-C18)/C18 -> 0.06666666667 | E19: 70.8 | F19: 451.9774011
B20: 2015 | C20: 330 | D20: 0.03125 | E20: 74.1 | F20: 445.3441296
B21: 2016 | C21: 350 | D21: 0.06060606061 | E21: 78.8 | F21: 444.1624365
B22: 2017 | C22: 380 | D22: 0.08571428571 | E22: 82.9 | F22: 458.3835947
B23: 2018 | C23: 405 | D23: 0.06578947368 | E23: 86.8 | F23: 466.5898618
B24: 2019 | C24: 425 | D24: 0.04938271605 | E24: 90.3 | F24: 470.6533776
B25: 2020 | C25: 445 | D25: 0.04705882353 | E25: 93.3 | F25: 476.9560557
B26: 2021 | C26: 460 | D26: 0.03370786517 | E26: 97.5 | F26: 471.7948718
B27: 2022 | C27: 480 | D27: 0.04347826087 | E27: 104.2 | F27: 460.6525912
B28: 2023 | C28: 505 | D28: =(C28-C27)/C27 -> 0.05208333333 | E28: 110.4 | F28: 457.4275362
B29: 2024 | C29: 530 | D29: =(C29-C28)/C28 -> 0.0495049505 | E29: 115.3 | F29: 459.670425
B30: Source: SASSA, www.sassa.gov.za, accessed 18 November 2014; Stats SA, Consumer Price Index, April 2024, Statistical release P0141, 22 May 2024, p5; National Treasury, Budget Review 2024, 21 February 2024, Table 5.7, p54; Stats SA, Consumer Price Index, Historical data, accessed 30 April 2024.
B31: a Index base year: December 2021=100.
B32: b At constant 2021 prices. CRA calculations.
B33: c CRA calculations.

Sheet Value real and nominal of foste
B2: Value (real and nominal), of foster care grants, 2002-24
B4: Year | C4: Amount paid per month | D4: Year-on-year changec | E4: Consumer Price Indexa | F4: Real monthly value (in line with inflation)bc | G4: Year-on-year changec
C5: R | F5: R
B6: 2002 | C6: 450 | D6: — | E6: 36.9 | F6: =(C6/E6)*100 -> 1219.512195 | G6: —
B7: 2003 | C7: 500 | D7: =(C7-C6)/C6 -> 0.1111111111 | E7: 39.1 | F7: =(C7/E7)*100 -> 1278.772379 | G7: =(F7-F6)/F6 -> 0.04859335038
B8: 2004 | C8: 530 | D8: 0.06 | E8: 39.6 | F8: 1338.383838 | G8: =(F8-F7)/F7 -> 0.04661616162
B9: 2005 | C9: 560 | D9: 0.05660377358 | E9: 41 | F9: 1365.853659 | G9: 0.02052462034
B10: 2006 | C10: 590 | D10: 0.05357142857 | E10: 42.9 | F10: 1375.291375 | G10: 0.00690975691
B11: 2007 | C11: 620 | D11: 0.05084745763 | E11: 45.9 | F11: 1350.762527 | G11: -0.01783538274
B12: 2008 | C12: 650 | D12: 0.04838709677 | E12: 51.2 | F12: 1269.53125 | G12: -0.06013734879
B13: 2009 | C13: 680 | D13: 0.04615384615 | E13: 54.6 | F13: 1245.421245 | G13: -0.01899126515
B14: 2010 | C14: 710 | D14: 0.04411764706 | E14: 56.9 | F14: 1247.803163 | G14: 0.00191254006
B15: 2011 | C15: 740 | D15: 0.04225352113 | E15: 59.8 | F15: 1237.458194 | G15: -0.008290545951
B16: 2012 | C16: 770 | D16: 0.04054054054 | E16: 63.1 | F16: 1220.285261 | G16: -0.01387758599
B17: 2013 | C17: 800 | D17: 0.03896103896 | E17: 66.8 | F17: 1197.60479 | G17: -0.01858620421
B18: 2014 | C18: 830 | D18: 0.0375 | E18: 70.8 | F18: 1172.316384 | G18: -0.02111581921
B19: 2015 | C19: 860 | D19: =(C19-C18)/C18 -> 0.03614457831 | E19: 74.1 | F19: 1160.593792 | G19: -0.009999512219
B20: 2016 | C20: 890 | D20: 0.03488372093 | E20: 78.8 | F20: 1129.441624 | G20: -0.02684157715
B21: 2017 | C21: 920 | D21: 0.03370786517 | E21: 82.9 | F21: 1109.770808 | G21: -0.01741640802
B22: 2018 | C22: 960 | D22: 0.04347826087 | E22: 86.8 | F22: 1105.990783 | G22: -0.003406131036
B23: 2019 | C23: 1000 | D23: 0.04166666667 | E23: 90.3 | F23: 1107.419712 | G23: 0.001291989664
B24: 2020 | C24: 1040 | D24: 0.04 | E24: 93.3 | F24: 1114.683816 | G24: 0.006559485531
B25: 2021 | C25: 1050 | D25: 0.009615384615 | E25: 97.5 | F25: 1076.923077 | G25: -0.03387573964
B26: 2022 | C26: 1070 | D26: 0.01904761905 | E26: 104.2 | F26: 1026.871401 | G26: -0.04647655607
B27: 2023 | C27: 1125 | D27: 0.05140186916 | E27: 110.4 | F27: 1019.021739 | G27: -0.007644250305
B28: 2024 | C28: 1180 | D28: 0.04888888889 | E28: 115.3 | F28: 1023.417173 | G28: 0.004313385371
B29: Source: SASSA, www.sassa.gov.za, accessed 21 April 2014; Stats SA, Consumer Price Index, April 2024, Statistical release P0141, 22 May 2024, p5; National Treasury, Budget Review 2024, 21 February 2024, Table 5.7, p54; Stats SA, Consumer Price Index, Historical data, accessed 30 April 2024.
B30: a Index base year: December 2021=100.
B31: b At constant 2021 prices.
B32: c CRA calculations.

Sheet Value nominal and real of old a
B2: Value (nominal and real) of old-age pensions, 1994-2024
B4: Year | C4: Amount paid per month | D4: Year-on-year changec | E4: Consumer Price Index (CPI)a | F4: Real monthly grant) in line with inflation)bc | G4: Year-on-year changec
C5: R | F5: R
B6: 1994 | C6: 390 | D6: 0.054 | E6: 21.3 | F6: =(C6/E6)*100 -> 1830.985915 | G6: —
B7: 1995 | C7: 410 | D7: 0.051 | E7: 23.2 | F7: =(C7/E7)*100 -> 1767.241379 | G7: =(F7-F6)/F6 -> -0.03481432361
B8: 1996 | C8: 430 | D8: 0.048 | E8: 24.9 | F8: 1726.907631 | G8: =(F8-F7)/F7 -> -0.02282299931
B9: 1997 | C9: 470 | D9: 0.093 | E9: 27 | F9: 1740.740741 | G9: 0.008010335917
B10: 1998 | C10: 500 | D10: 0.063 | E10: 28.9 | F10: 1730.103806 | G10: -0.006110579401
B11: 1999 | C11: 520 | D11: 0.04 | E11: 30.4 | F11: 1710.526316 | G11: -0.01131578947
B12: 2000 | C12: 540 | D12: 0.038 | E12: 32 | F12: 1687.5 | G12: -0.01346153846
B13: 2001 | C13: 570 | D13: 0.055 | E13: 33.8 | F13: 1686.390533 | G13: -0.0006574621959
B14: 2002 | C14: 620 | D14: 0.087 | E14: 36.9 | F14: 1680.216802 | G14: -0.003660913802
B15: 2003 | C15: 700 | D15: 0.129 | E15: 39.1 | F15: 1790.28133 | G15: 0.06550614636
B16: 2004 | C16: 740 | D16: 0.057 | E16: 39.6 | F16: 1868.686869 | G16: 0.0437950938
B17: 2005 | C17: 780 | D17: 0.054 | E17: 41 | F17: 1902.439024 | G17: 0.0180619644
B18: 2006 | C18: 820 | D18: 0.051 | E18: 42.9 | F18: 1911.421911 | G18: 0.004721773953
B19: 2007 | C19: 870 | D19: 0.06 | E19: 45.9 | F19: 1895.424837 | G19: -0.008369201339
B20: 2008 | C20: 940 | D20: 0.08 | E20: 51.2 | F20: 1835.9375 | G20: -0.03138469828
B21: 2009 | C21: 1010 | D21: 0.074 | E21: 54.6 | F21: 1849.81685 | G21: 0.00755981607
B22: 2010 | C22: 1080 | D22: 0.069 | E22: 56.9 | F22: 1898.066784 | G22: 0.02608362769
B23: 2011 | C23: 1140 | D23: 0.055 | E23: 59.8 | F23: 1906.354515 | G23: 0.00436640654
B24: 2012 | C24: 1200 | D24: 0.052 | E24: 63.1 | F24: 1901.743265 | G24: -0.002418883977
B25: 2013 | C25: 1260 | D25: 0.05 | E25: 66.8 | F25: 1886.227545 | G25: -0.008158682635
B26: 2014 | C26: 1350 | D26: 0.071 | E26: 70.8 | F26: 1906.779661 | G26: 0.01089588378
B27: 2015 | C27: 1410 | D27: 0.044 | E27: 74.1 | F27: 1902.834008 | G27: -0.002069275753
B28: 2016 | C28: 1505 | D28: =(C28-C27)/C27 -> 0.06737588652 | E28: 78.8 | F28: 1909.898477 | G28: 0.003712603953
B29: 2017 | C29: 1600 | D29: 0.063 | E29: 82.9 | F29: 1930.036188 | G29: 0.01054386464
B30: 2018 | C30: 1695 | D30: 0.063 | E30: 86.8 | F30: 1952.764977 | G30: 0.01177635369
B31: 2019 | C31: 1780 | D31: 0.063 | E31: 90.3 | F31: 1971.207087 | G31: 0.009444101438
B32: 2020 | C32: 1860 | D32: 0.063 | E32: 93.3 | F32: 1993.569132 | G32: 0.01134434047
B33: 2021 | C33: 1890 | D33: 0.063 | E33: 97.5 | F33: 1938.461538 | G33: -0.0276426799
B34: 2022 | C34: 1985 | D34: 0.063 | E34: 104.2 | F34: 1904.990403 | G34: -0.01726685556
B35: 2023 | C35: 2085 | D35: 0.063 | E35: 110.4 | F35: 1888.586957 | G35: -0.008610776476
B36: 2024 | C36: 2185 | D36: 0.063 | E36: 115.3 | F36: 1895.056375 | G36: 0.003425533641
B37: Source: SASSA, www.sassa.gov.za, accessed 18 November 2014; Stats SA, Consumer Price Index, April 2024, Statistical release P0141, 22 May 2024, p5; National Treasury, Budget Review 2024, 21 February 2024, Table 5.7, p54; Stats SA, Consumer Price Index, Historical data, accessed 30 April 2024.
B38: a Index base year: December 2021=100.
B39: b At constant 2021 prices.
B40: c CRA calculations.

Sheet Value real and nominal of disab
B2: Value (real and nominal) of disability grants, 2002-24
B4: Year | C4: Amount paid per month | D4: Year-on-year changec | E4: Consumer Price Indexa | F4: Real monthly value (in line with inflation)bc | G4: Year-on-year changec
C5: R | F5: R
B6: 2002 | C6: 620 | D6: – | E6: 36.9 | F6: =(C6/E6)*100 -> 1680.216802 | G6: —
B7: 2003 | C7: 700 | D7: 0.129 | E7: 39.1 | F7: =(C7/E7)*100 -> 1790.28133 | G7: =(F7-F6)/F6 -> 0.06550614636
B8: 2004 | C8: 740 | D8: 0.057 | E8: 39.6 | F8: 1868.686869 | G8: =(F8-F7)/F7 -> 0.0437950938
B9: 2005 | C9: 780 | D9: 0.054 | E9: 41 | F9: 1902.439024 | G9: 0.0180619644
B10: 2006 | C10: 820 | D10: 0.051 | E10: 42.9 | F10: 1911.421911 | G10: 0.004721773953
B11: 2007 | C11: 870 | D11: 0.061 | E11: 45.9 | F11: 1895.424837 | G11: -0.008369201339
B12: 2008 | C12: 940 | D12: 0.08 | E12: 51.2 | F12: 1835.9375 | G12: -0.03138469828
B13: 2009 | C13: 1010 | D13: 0.074 | E13: 54.6 | F13: 1849.81685 | G13: 0.00755981607
B14: 2010 | C14: 1080 | D14: 0.069 | E14: 56.9 | F14: 1898.066784 | G14: 0.02608362769
B15: 2011 | C15: 1140 | D15: 0.056 | E15: 59.8 | F15: 1906.354515 | G15: 0.00436640654
B16: 2012 | C16: 1200 | D16: 0.053 | E16: 63.1 | F16: 1901.743265 | G16: -0.002418883977
B17: 2013 | C17: 1260 | D17: 0.05 | E17: 66.8 | F17: 1886.227545 | G17: -0.008158682635
B18: 2014 | C18: 1350 | D18: 0.071 | E18: 70.8 | F18: 1906.779661 | G18: 0.01089588378
B19: 2015 | C19: 1410 | D19: 0.044 | E19: 74.1 | F19: 1902.834008 | G19: -0.002069275753
B20: 2016 | C20: 1505 | D20: =(C20-C19)/C19 -> 0.06737588652 | E20: 78.8 | F20: 1909.898477 | G20: 0.003712603953
B21: 2017 | C21: 1600 | D21: 0.06312292359 | E21: 82.9 | F21: 1930.036188 | G21: 0.01054386464
B22: 2018 | C22: 1695 | D22: 0.059375 | E22: 86.8 | F22: 1952.764977 | G22: 0.01177635369
B23: 2019 | C23: 1780 | D23: 0.05014749263 | E23: 90.3 | F23: 1971.207087 | G23: 0.009444101438
B24: 2020 | C24: 1860 | D24: 0.04494382022 | E24: 93.3 | F24: 1993.569132 | G24: 0.01134434047
B25: 2021 | C25: 1890 | D25: 0.01612903226 | E25: 97.5 | F25: 1938.461538 | G25: -0.0276426799
B26: 2022 | C26: 1985 | D26: 0.05026455026 | E26: 104.2 | F26: 1904.990403 | G26: -0.01726685556
B27: 2023 | C27: 2085 | D27: 0.05037783375 | E27: 110.4 | F27: 1888.586957 | G27: -0.008610776476
B28: 2024 | C28: 2185 | D28: 0.0479616307 | E28: 115.3 | F28: 1895.056375 | G28: 0.003425533641
B29: Source: SASSA, www.sassa.gov.za, accessed 18 November 2014; Stats SA, Consumer Price Index, April 2024, Statistical release P0141, 22 May 2024, p5; National Treasury, Budget Review 2024, 21 February 2024, Table 5.7, p54; Stats SA, Consumer Price Index, Historical data, accessed 30 April 2024.
B30: a Index base year: December 2021=100.
B31: b At constant 2021 prices.
B32: c CRA calculations.

Sheet Dependency

Sheet Social grant dependency
A2: Dependency on grants
B4: Social grant dependency, 2001-23
B6: Year | C6: Employed peoplea | D6: Unemployed peopleab | E6: Number of social grants | F6: Social grant dependency ratioc
B7: 2001 | C7: 12494000 | D7: 4081000 | E7: 3993133 | F7: 313 to 100
B8: 2002 | C8: 11995000 | D8: 4603000 | E8: 4925900 | F8: 244 to 100
B9: 2003 | C9: 11666000 | D9: 4843000 | E9: 6494115 | F9: 180 to 100
B10: 2004 | C10: 11823000 | D10: 4231000 | E10: 7894810 | F10: 150 to 100
B11: 2005 | C11: 12503000 | D11: 3993000 | E11: 10974076 | F11: 114 to 100
B12: 2006 | C12: 13237000 | D12: 3984000 | E12: 12015059 | F12: 110 to 100
B13: 2007 | C13: 13236000 | D13: 4119000 | E13: 12423739 | F13: 107 to 100
B14: 2008 | C14: 14584000 | D14: 4267000 | E14: 13072173 | F14: 112 to 100
B15: 2009 | C15: 14357000 | D15: 4341000 | E15: 14057365 | F15: 102 to 100
B16: 2010 | C16: 13809000 | D16: 4622000 | E16: 14935832 | F16: 92 to 100
B17: 2011 | C17: 13922000 | D17: 4782000 | E17: 15595705 | F17: 89 to 100
B18: 2012 | C18: 14330000 | D18: 4721000 | E18: 16106110 | F18: 89 to 100
B19: 2013 | C19: 14692000 | D19: 4972000 | E19: 15932473 | F19: 92 to 100
B20: 2014 | C20: 15094000 | D20: 5154000 | E20: 16443196 | F20: 92 to 100
B21: 2015 | C21: 15657000 | D21: 5230000 | E21: 16780488 | F21: 93 to 100
B22: 2016 | C22: 15545000 | D22: 5634000 | E22: 17094331 | F22: 91 to 100
B23: 2017 | C23: 16100000 | D23: 6177000 | E23: 17229386 | F23: 93 to 100
B24: 2018 | C24: 16288000 | D24: 6083000 | E24: 17811745 | F24: 91 to 100
B25: 2019 | C25: 16313000 | D25: 6655000 | E25: 18138552 | F25: 90 to 100
B26: 2020 | C26: 14148000 | D26: 4295000 | E26: 18290592 | F26: 77 to 100
B27: 2021 | C27: 14942000 | D27: 7826000 | E27: 18439185 | F27: 81 to 100
B28: 2022 | C28: 15562000 | D28: 7994000 | E28: 29340572 | F28: 53 to 100
B29: 2023e | C29: 16346000 | D29: 7921000 | E29: 26 317 067e | F29: 62 to 100
B30: 2001-23 | C30: =(C29-C7)/C7 -> 0.3083079878 | D30: =(D29-D7)/D7 -> 0.9409458466 | E30: 5.591 | F30: —
B31: Source: SASSA, Statistical Report: Social assistance, September 2023, Table 1, p9;
B32: a From 2001 to 2007 the data is based on the Labour Force Survey Historical Revision March Series. From 2008 to 2015 the data is based on the Quarterly Labour Force Survey Historical revisions of the QLFS 2008 to 2014, and refers to the second quarter.
B33: b Based on the official definition of unemployment.
B34: c CRA calculations. For example, in 2001, there were 313 employed people per 100 social grants and in 2021, 81 employed for every 100 social grants.
B35: d This figure includes social grants paid out in April 2023.
B36: e This figure includes the total number of SRD grant applications approved by January 2023.

Sheet Children

Sheet Child support grants

Sheet Child supp.grants.22
A2: Children
A4: Child support
A6: Childrena receiving child support grants by age and province, 2022
B8: —Child beneficiaries— | F8: Share of totalb child beneficiaries | G8: Share of total childrenc
A9: Province | B9: 0-5 years | C9: 6-11 years | D9: 12-17 years | E9: Total
A10: Eastern Cape | B10: 604759 | C10: 670077 | D10: 651350 | E10: =SUM(B10:D10) -> 1926186 | F10: =E10/Total12445 -> 0.1491347766 | G10: 0.754
A11: Free State | B11: 222178 | C11: 245974 | D11: 238712 | E11: =SUM(B11:D11) -> 706864 | F11: =E11/Total12445 -> 0.05472888119 | G11: 0.669
A12: Gauteng | B12: 637190 | C12: 707032 | D12: 636780 | E12: 1981002 | F12: =(E12/Total12445) -> 0.1533789005 | G12: 0.448
A13: KwaZulu-Natal | B13: 950709 | C13: 1029300 | D13: 981543 | E13: 2961552 | F13: 0.2292978954 | G13: 0.688
A14: Limpopo | B14: 695844 | C14: 675668 | D14: 578911 | E14: 1950423 | F14: 0.1510113242 | G14: 0.789
A15: Mpumalanga | B15: 405844 | C15: 396380 | D15: 362219 | E15: 1164443 | F15: 0.09015689384 | G15: 0.676
A16: North West | B16: 299752 | C16: 311591 | D16: 282815 | E16: 894158 | F16: 0.06923010219 | G16: 0.621
A17: Northern Cape | B17: 110030 | C17: 116029 | D17: 103141 | E17: 329200 | F17: 0.02548828019 | G17: 0.748
A18: Western Cape | B18: 294186 | C18: 366821 | D18: 340905 | E18: 1001912 | F18: 0.07757294588 | G18: 0.479
A19: South Africa | B19: =SUM(B10:B18) -> 4220492 | C19: =SUM(C10:C18) -> 4518872 | D19: =SUM(D10:D18) -> 4176376 | E19: =SUM(B19:D19) -> 12915740 | F19: =SUM(F10:F18) -> 1 | G19: 0.63
A20: Source: Children's Institute, South African Child Gauge 2021/2022, 2022, Table 2a, p172
A21: a People aged below 18.
A22: b CRA calculations. Refers to the proportion of children receiving child support grants that each province accounts for. For example, in 2022, 14.9% of children receiving child support grants were in the Eastern Cape.
A23: c CRA calculations. Refers to the proportion of children in each province receiving child support grants. For example, in 2022, 75.4% of children in the Eastern Cape received child support grants.

Sheet Child beneficiaries of sg.22
B2: Childa beneficiaries of social grants by sex, 2022
C4: Sex | D4: Beneficiaries | E4: Total children | F4: Beneficiaries as a proportion of total
C5: Male | D5: 7252000 | E5: 10454000 | F5: =(D5/E5) -> 0.6937057586
C6: Female | D6: 7219000 | E6: 10413000 | F6: =(D6/E6) -> 0.6932680303
C7: Total | D7: 14470000 | E7: =SUM(E5:E6) -> 20867000 | F7: 0.6934394019
C8: Source: Stats SA, Marginalised Groups Indicator Report 2022, 26 March 2024, Table 1.3.1, p7
C9: a People aged below 18.

Sheet Childonfostercaregrant.02-22
A2: Children receiving foster care grants by province, 2012-22
A4: Province | B4: 2012 | C4: 2017 | D4: 2018 | E4: 2019 | F4: 2020 | G4: 2022 | H4: Change 2012-22
A5: Eastern Cape | B5: 116826 | C5: 104910 | D5: 99033 | E5: 90704 | F5: 81128 | G5: 63046 | H5: =(G5-B5)/B5 -> -0.4603427319
A6: Free State | B6: 43311 | C6: 33195 | D6: 30991 | E6: 28813 | F6: 26116 | G6: 20230 | H6: =(G6-B6)/B6 -> -0.5329131168
A7: Gauteng | B7: 56451 | C7: 50379 | D7: 48132 | E7: 45848 | F7: 43355 | G7: 35415 | H7: -0.3726417601
A8: KwaZulu-Natal | B8: 142114 | C8: 92060 | D8: 83525 | E8: 75177 | F8: 66722 | G8: 51241 | H8: -0.6394373531
A9: Limpopo | B9: 56066 | C9: 47921 | D9: 46341 | E9: 44314 | F9: 42317 | G9: 34728 | H9: -0.3805871651
A10: Mpumalanga | B10: 32886 | C10: 32087 | D10: 30351 | E10: 27768 | F10: 24512 | G10: 18612 | H10: -0.4340448823
A11: North West | B11: 45634 | C11: 35134 | D11: 33094 | E11: 29553 | F11: 11211 | G11: 22493 | H11: -0.5070999693
A12: Northern Cape | B12: 14456 | C12: 13657 | D12: 12880 | E12: 11970 | F12: 28495 | G12: 9342 | H12: -0.3537631433
A13: Western Cape | B13: 29003 | C13: 30945 | D13: 31669 | E13: 31872 | F13: 31754 | G13: 29999 | H13: 0.03434127504
A14: South Africa | B14: =SUM(B5:B13) -> 536747 | C14: 440288 | D14: 416016 | E14: =SUM(E5:E13) -> 386019 | F14: =SUM(F5:F13) -> 355610 | G14: =SUM(G5:G13) -> 285106 | H14: -0.468826095
A15: Source: South Africa Survey 2012, p592; South Africa Survey 2014/15, p606; South Africa Survey 2016, p630; Children’s Institute, South African Child Gauge 2021/22, 2022, Table 2b, p175

Sheet Care dependency grants.22
C2: Care dependency grants by province, 2022
C4: Province | D4: Number | E4: Proportion
C5: Eastern Cape | D5: 22775 | E5: =(D5/Totalo454) -> 0.1506322919
C6: Free State | D6: 8831 | E6: 0.05840762983
C7: Gauteng | D7: 21163 | E7: 0.1399706341
C8: KwaZulu-Natal | D8: 39044 | E8: 0.2582343448
C9: Limpopo | D9: 16668 | E9: 0.1102410117
C10: Mpumalanga | D10: 11408 | E10: 0.07545173153
C11: North West | D11: 9528 | E11: 0.06301754015
C12: Northern Cape | D12: 5725 | E12: 0.03786475833
C13: Western Cape | D13: 16054 | E13: 0.1061800577
C14: South Africa | D14: =SUM(D5:D13) -> 151196 | E14: =SUM(E5:E13) -> 1
B15: Source: Children's Institute, South African Child Gauge 2021/22, 2022, Table 2c, p176

Sheet Living arrangements

Sheet Child living arrangement.2022
B2: Children's living arrangements
B4: Children's living arrangements, 2022
B6: All children | C6: 20867000
B7: Children living with both parents | C7: 6823509
B8: Children living with mother only | C8: 9202347
B9: Children living with father only | C9: 772079
B10: All orphans | C10: 2504040
B11: Double orphans | C11: 417340
B12: Children in foster care | C12: 285106
B13: Children in child-headed householdsa | C13: 56000
B14: Source: Stats SA, Vulnerable Groups Indicator Report: 2017, Report Number: 03-19-02, 13 March 2019; Table 1.1.1, p5; Table 1.2.1, p9, Table 1.2.3, p9; Children's Institute, South African Child Gauge 2020, p167-175; Marginalised Groups Indicator Report 2022, Table 1.2.4, p4
B15: a Child-headed households are those in which the oldest resident is younger than 18 years.

Sheet Childreninfostercarebyprov.22
B2: Children in foster carea by province, 2022
B4: Province | C4: Children in foster care | D4: Proportion of children in foster careb | E4: Proportion of all childrenc
B5: Eastern Cape | C5: 63046 | D5: =(C5/Jerry12) -> 0.2211317896 | E5: 0.025
B6: Free State | C6: 20230 | D6: 0.07095606546 | E6: 0.019
B7: Gauteng | C7: 35415 | D7: 0.1242169579 | E7: 0.008
B8: KwaZulu-Natal | C8: 51241 | D8: 0.1797261369 | E8: 0.012
B9: Limpopo | C9: 34728 | D9: 0.1218073278 | E9: 0.014
B10: Mpumalanga | C10: 18612 | D10: 0.06528098321 | E10: 0.011
B11: North West | C11: 22493 | D11: 0.07889346419 | E11: 0.016
B12: Northern Cape | C12: 9342 | D12: 0.03276676043 | E12: 0.021
B13: Western Cape | C13: 29999 | D13: 0.1052205145 | E13: 0.014
B14: South Africa | C14: =SUM(C5:C13) -> 285106 | D14: 1 | E14: 0.014
B15: Source: Children’s Institute, South African Child Gauge 2021/22, Table 2b, p175;
B16: a A child in foster care is placed in foster parents' custody by a court if they have been orphaned, abandoned, abused, neglected, or are at risk. The child must be below 18 years.
B17: b CRA calculations. Refers to the proportion of children in foster care that each province accounts for. For example, in 2022, 22.1% of all children in foster care were in the Eastern Cape.
B18: c CRA calculations. Refers to the proportion of children in each province who are in foster care. For example, in 2022, 2.5% of children in the Eastern Cape were in foster care.

Sheet Chnlvngwithnoemplyedadlt.15-22
A2: Children in households without an employed adult by province, 2015-22
B4: —2015— | D4: —2018— | F4: —2022—
A5: Province | B5: Number | C5: Proportion of total | D5: Number | E5: Proportion of total | F5: Number | G5: Proportion of total
A6: Eastern Cape | B6: 1276000 | C6: 0.225 | D6: 1151000 | E6: =(D6/Total5910) -> 0.1966176973 | F6: 1160000 | G6: =(F6/Total6627) -> 0.1750414969
A7: Free State | B7: 300000 | C7: 0.053 | D7: 359000 | E7: 0.06132558934 | F7: 384000 | G7: 0.05794477139
A8: Gauteng | B8: 494000 | C8: 0.087 | D8: 631000 | E8: 0.1077895456 | F8: 947000 | G8: 0.1429002565
A9: KwaZulu-Natal | B9: 1388000 | C9: 0.245 | D9: 1505000 | E9: 0.2570891698 | F9: 1587000 | G9: 0.2394748755
A10: Limpopo | B10: 1000000 | C10: 0.176 | D10: 968000 | E10: 0.1653570208 | F10: 982000 | G10: 0.148181681
A11: Mpumalanga | B11: 455000 | C11: 0.08 | D11: 478000 | E11: 0.08165357021 | F11: 562000 | G11: 0.08480458729
A12: North West | B12: 424000 | C12: 0.075 | D12: 478000 | E12: 0.08165357021 | F12: 589000 | G12: 0.08887882903
A13: Northern Cape | B13: 124000 | C13: 0.022 | D13: 127000 | E13: 0.02169456782 | F13: 129000 | G13: 0.01946582164
A14: Western Cape | B14: 214000 | C14: 0.038 | D14: 157000 | E14: 0.02681926888 | F14: 287000 | G14: 0.0433076807
A15: South Africa | B15: 5674000 | C15: 1 | D15: 5854000 | E15: =SUM(E6:E14) -> 1 | F15: 6627000 | G15: =SUM(G6:G14) -> 1
A16: Source: Stats SA, Vulnerable Groups Indicator Report: 2015, Report number: 03-19-02, 29 March 2016, p11, Vulnerable Groups Indicator Report: 2016,, Report number: 03-19-02, 22 August 2017, Table 1.3.1, p11; Marginalised Groups Indicator Report 2018, 27 February 2020, Table 1.3.2, p11; Marginalised Groups Indicator Report 2022, 26 March 2024, Table 1.3.2, p7

Sheet Older persons

Sheet Old-age grants

Sheet Beneficiaries of old-age grants
C1: Older persons
C3: Old-age welfare
B5: Beneficiaries of old-age grants, 1996/97-2022/23
E7: —Old-age grants—
C8: Year | D8: People aged 60+ | E8: Beneficiaries | F8: Proportion of people aged 60+a
C9: 1996/97 | D9: 2825200 | E9: 1637934 | F9: 0.58
C10: 2001/02 | D10: 3280505 | E10: 1903042 | F10: 0.58
C11: 2008/09 | D11: 3508400 | E11: 2390543 | F11: 0.681
C12: 2011/12 | D12: 3890258 | E12: 2750857 | F12: 0.707
C13: 2013/14 | D13: 4146910 | E13: 2900933 | F13: 0.7
C14: 2014/15 | D14: 4542065 | E14: 3074000 | F14: 0.677
C15: 2015/16 | D15: 4419331 | E15: 3184447 | F15: =E15/D15 -> 0.7205721862
C16: 2016/17 | D16: 4477376 | E16: 3268262 | F16: =(E16/D16) -> 0.7299503102
C17: 2017/18 | D17: 4597000 | E17: 3408994 | F17: 0.7415692843
C18: 2018/19 | D18: 4889306 | E18: 3553317 | F18: 0.7267528357
C19: 2019/20 | D19: 5406490 | E19: 3676791 | F19: 0.680069879
C20: 2020/21 | D20: 5426490 | E20: 3711170 | F20: 0.6838988001
C21: 2021/22 | D21: 5599261 | E21: 3782522 | F21: 0.6755395042
C22: 2022/23 | D22: 5809319 | E22: 3902610 | F22: 0.6717844209
B23: Source: National Treasury, Estimates of National Expenditure 2013, February 2013; Stats SA, Census In Brief 1996: Third edition, July 1999; Census in Brief 2001, 2003; Mid-year population estimates 2008, July 2008; Mid-year population estimates 2011; July 2011; Mid-year population estimates 2013; May 2013; Mid-year population estimates 2014, July 2014; Mid-year population estimates 2016, July 2016; SASSA, Fact Sheet: Issue No. 2 of 2016, 29 February 2016; Fact sheet: Issue no. 4 of 2018, 30 April 2018; Annual Report 2018/19, Table 1, p 26; Fact Sheet: Issue no. 1 of 2022, 30 April 2022
B24: a CRA calculations.

Sheet Households headed by older pers
B2: Households headed by older personsa with social grants as their main source of income by province, 2022
B4: Province | C4: Social grants as main source of income for household | D4: Total number of households headed by older persons | E4: Proportion of older persons
B5: Eastern Cape | C5: =(E5*D5) -> 446832 | D5: 522000 | E5: 0.856
B6: Free State | C6: =(E6*D6) -> 170016 | D6: 224000 | E6: 0.759
B7: Gauteng | C7: 512001 | D7: 903000 | E7: 0.567
B8: KwaZulu-Natal | C8: 441864 | D8: 684000 | E8: 0.646
B9: Limpopo | C9: 297704 | D9: 374000 | E9: 0.796
B10: Mpumalanga | C10: 176559 | D10: 257000 | E10: 0.687
B11: North West | C11: 218025 | D11: 285000 | E11: 0.765
B12: Northern Cape | C12: 65007 | D12: 93000 | E12: 0.699
B13: Western Cape | C13: 236096 | D13: 434000 | E13: 0.544
B14: South Africa | C14: 2564583 | D14: 3777000 | E14: 0.679
B15: Source: Stats SA, Marginalised Groups Indicator Report 2022, 26 March 2024, Table 4.3.20, p94
B16: a People aged 60 and above.

Sheet Older persons social grants geo
C2: Households headed by older persons with social grants as their main source of income by geo-type, 2022
C4: Geo-type | D4: Social grants as main source of income | E4: Total households headed by older persons | F4: Proportion of households headed by older persons
C5: Urban | D5: =(F5*E5) -> 880080 | E5: 1544000 | F5: 0.57
C6: Rural | D6: =(F6*E6) -> 1685160 | E6: 2232000 | F6: 0.755
C7: Total | D7: =(F7*E7) -> 2564583 | E7: 3777000 | F7: 0.679
B8: Source: Stats SA, Marginalised Groups Indicator Report 2022, 26 March 2024, Table 4.3.21, p95

Sheet Pension asset size by selected
C2: Pensions by asseta size selected countries, 2007-23
C4: Country | D4: 2007 | E4: 2020 | F4: 2023 | G4: Change 2007-23
D5: —$bn—
C6: Australia | D6: 1086 | E6: 2333 | F6: 2137 | G6: =(F6-E6)/E6 -> -0.08401200171
C7: Brazil | D7: 259 | E7: 195 | F7: 233 | G7: =(F7-E7)/E7 -> 0.1948717949
C8: Canada | D8: 1209 | E8: 3080 | F8: 2880 | G8: -0.06493506494
C9: Chile | D9: 111 | E9: 243 | F9: 148 | G9: -0.3909465021
C10: China | D10: N/A | E10: 285 | F10: 382 | G10: 0.3403508772
C11: Finland | D11: 183 | E11: 279 | F11: 240 | G11: -0.1397849462
C12: France | D12: 170 | E12: 166 | F12: 125 | G12: -0.2469879518
C13: Germany | D13: 391 | E13: 548 | F13: 415 | G13: -0.2427007299
C14: Hong Kong | D14: 75 | E14: 199 | F14: 190 | G14: -0.04522613065
C15: India | D15: N/A | E15: 184 | F15: 173 | G15: -0.0597826087
C16: Ireland | D16: 128 | E16: 197 | F16: 166 | G16: -0.1573604061
C17: Italy | D17: N/A | E17: 231 | F17: 205 | G17: -0.1125541126
C18: Japan | D18: 3002 | E18: 3613 | F18: 3099 | G18: -0.1422640465
C19: Malaysia | D19: N/A | E19: 279 | F19: 254 | G19: -0.08960573477
C20: Mexico | D20: 108 | E20: 259 | F20: 291 | G20: 0.1235521236
C21: Netherlands | D21: 1058 | E21: 1900 | F21: 1641 | G21: -0.1363157895
C22: South Africa | D22: 195 | E22: 223 | F22: 245 | G22: 0.09865470852
C23: South Korea | D23: N/A | E23: 968 | F23: 921 | G23: -0.04855371901
C24: Spain | D24: 46 | E24: 44 | F24: 36 | G24: -0.1818181818
C25: Switzerland | D25: 539 | E25: 1163 | F25: 1074 | G25: -0.07652622528
C26: United Kingdom | D26: 2686 | E26: 3564 | F26: 2568 | G26: -0.2794612795
C27: United States | D27: 15330 | E27: 32567 | F27: 30439 | G27: -0.06534221758
C28: Source: Thinking Ahead Institute, Global Pension Asset Study 2023, February 2023, p14
C29: N/A — Not available.
B30: a Assets whose official primary purpose is to provide pension income.

Sheet Personnel and services

Sheet Social work students.10-21
A2: Personnel and services
A4: Social work students enrolled in public universities, 2010-21
A6: Qualification level | B6: 2010 | C6: 2017a | D6: 2018a | E6: 2019a | F6: 2020a | G6: 2021a
A7: Undergraduate Diploma/Certificate (1 and 2 years) | B7: 1093 | C7: 267 | D7: 241 | E7: 358 | F7: 497 | G7: 657
A8: Undergraduate Diploma/Certificate (3 years) | B8: 281 | C8: 10 | D8: 0 | E8: 0 | F8: 0 | G8: 0
A9: Bachelor's Degree (3 years) | B9: 376 | C9: 352 | D9: 222 | E9: 278 | F9: 224 | G9: 218
A10: Bachelor's Degree (4 years or more) | B10: 10769 | C10: 13140 | D10: 10440 | E10: 8349 | F10: 7373 | G10: 7227
A11: Postgraduate Diploma/Certificate | B11: 0 | C11: 0 | D11: 0 | E11: 0 | F11: 0 | G11: 0
A12: Honours/National Higher Diploma | B12: 98 | C12: 64 | D12: 67 | E12: 93 | F12: 89 | G12: 46
A13: Master's Degree | B13: 567 | C13: 828 | D13: 839 | E13: 833 | F13: 767 | G13: 732
A14: Doctorate Degree | B14: 121 | C14: 230 | D14: 252 | E14: 243 | F14: 245 | G14: 260
A15: Total | B15: 13305 | C15: 15066 | D15: 12060 | E15: 10208 | F15: 9223 | G15: =SUM(G7:G14) -> 9140
A16: Source: Department of Higher Education and Training (DHET), www.dhet.gov.za, Table 2.12 for all institutions to 2nd order CESM (Enrolments 2010-21), accessed 5 June 2022
A17: a Includes occasional students.

Sheet Social work students grad.
A2: Social work students graduating from public universities, 2010-22
A4: Qualification level | B4: 2010 | C4: 2018a | D4: 2019a | E4: 2020a | F4: 2021a | G4: 2022a
A5: Undergraduate Diploma/Certificate (1 and 2 years) | B5: 132 | C5: 50 | D5: 65 | E5: 212 | F5: 135 | G5: 195
A6: Undergraduate Diploma/Certificate (3 years) | B6: 98 | C6: 1 | D6: 0 | E6: 0 | F6: 0 | G6: 0 | I6: Department of Higher Education and Training - Higher-Education-Management-Information-System (dhet.gov.za)
A7: Bachelor's Degree (3 years) | B7: 65 | C7: 58 | D7: 51 | E7: 34 | F7: 34 | G7: 25
A8: Bachelor's Degree (4 years or more) | B8: 1173 | C8: 2447 | D8: 2059 | E8: 1600 | F8: 1349 | G8: 1168
A9: Postgraduate Diploma/Certificate | B9: 0 | C9: 0 | D9: 0 | E9: 0 | F9: 0 | G9: 0
A10: Honours/National Higher Diploma | B10: 60 | C10: 58 | D10: 76 | E10: 79 | F10: 36 | G10: 11
A11: Master's Degree | B11: 62 | C11: 123 | D11: 140 | E11: 163 | F11: 130 | G11: 127
A12: Doctorate Degree | B12: 13 | C12: 28 | D12: 31 | E12: 36 | F12: 26 | G12: 42
A13: Total | B13: 1603 | C13: 2776 | D13: 2421 | E13: 2132 | F13: =SUM(F5:F12) -> 1710 | G13: =SUM(G5:G12) -> 1568
A14: Source: DHET, www.dhet.gov.za, Table 2.13 for all institutions to 2nd order CESM (Graduates 2010-22), accessed 8 July 2024
A15: a Includes occasional students.

Sheet PRIVATE SOC. SEC. PROVISION

Sheet Corporate Social Investment

Sheet Corporate Social Invest.15-23
A2: Corporate funding of social security
A4: Published Corporate Social Investment (CSI) expenditure by company, 2015/16-2022/23
A6: Company | B6: 2015/16a | C6: 2019/20b | D6: 2020/21c | E6: 2021/22d | F6: 2022/23e | G6: Change 2015/16-2022/23
B7: —Expenditure Rm—
A8: Absa Group | B8: N/A | C8: 371 | D8: 380 | E8: 194.8 | F8: 266.7 | G8: —
A9: ADvTECHf | B9: 102 | C9: 197.6 | D9: 216 | E9: 207 | F9: 211 | G9: =(F9-B9)/B9 -> 1.068627451
A10: Adcock Ingram Holdings | B10: N/A | C10: N/A | D10: N/A | E10: 9.4 | F10: 8.4 | G10: —
A11: AECIg | B11: 18 | C11: 11.2 | D11: 34.6 | E11: 34.8 | F11: 36 | G11: 1
A12: African Equity Empowerment Investments (AEEI) | B12: N/A | C12: N/A | D12: N/A | E12: 30.7 | F12: 10.5 | G12: —
A13: Afrimat | B13: 5.3 | C13: N/A | D13: N/A | E13: 7.9 | F13: 12.3 | G13: 1.320754717
A14: Airports Company South Africa | B14: 56.4 | C14: N/A | D14: 14 | E14: 9.9 | F14: 13.7 | G14: -0.7570921986
A15: AfroCentric Group | B15: N/A | C15: N/A | D15: N/A | E15: 3.8 | F15: 16.6 | G15: —
A16: Alexander Forbes | B16: 5 | C16: 6.5 | D16: 5.7 | E16: 3.7 | F16: 5.6 | G16: 0.12
A17: Altron Grouph | B17: N/A | C17: N/A | D17: N/A | E17: 5.8 | F17: 7.2 | G17: —
A18: Alviva Holdings | B18: N/A | C18: N/A | D18: N/A | E18: N/A | F18: 10 | G18: —
A19: Anglo American | B19: 1581.1 | C19: 811.9 | D19: 1078.1 | E19: 1080.3 | F19: 1782.8 | G19: 0.1275694137
A20: AngloGold Ashant | B20: 79.3 | C20: N/A | D20: 338.9 | E20: 221.7 | F20: 261.7 | G20: 2.300126103
A21: ArcelorMittal SA | B21: 12.6 | C21: 18.3 | D21: 13.8 | E21: 15.5 | F21: 16.7 | G21: 0.3253968254
A22: Aspen Pharmacare Holdings | B22: 13.4 | C22: 16.2 | D22: 16.2 | E22: 16 | F22: 21.5 | G22: 0.6044776119
A23: Astral Foods | B23: 48.2 | C23: 3.2 | D23: 11.8 | E23: 5.2 | F23: 5.6 | G23: -0.8838174274
A24: AVI | B24: 20.8 | C24: 21.3 | D24: 22.2 | E24: 22 | F24: 23.8 | G24: 0.1442307692
A25: Barloworld | B25: 16.6 | C25: 19 | D25: 16 | E25: 16 | F25: 18 | G25: 0.0843373494
A26: Blue Label Telecoms | B26: 5.3 | C26: 9.7 | D26: 8.5 | E26: 17.5 | F26: 14.9 | G26: 1.811320755
A27: Brimstone Investment Corporation | B27: N/A | C27: 7 | D27: 6 | E27: 5 | F27: 12 | G27: —
A28: Capitec Bank Holdings | B28: 10.6 | C28: 77 | D28: 66 | E28: 40 | F28: 43 | G28: 3.056603774
A29: Cashbuild | B29: 133 | C29: 170 | D29: 170.2 | E29: 174.9 | F29: 182.5 | G29: 0.3721804511
A30: Clicks Group | B30: 11.1 | C30: 19.8 | D30: 19 | E30: 23 | F30: 24 | G30: 1.162162162
A31: Curro Holdingsi | B31: 27 | C31: 117 | D31: 142 | E31: 151 | F31: 137 | G31: 4.074074074
A32: Datatec | B32: 7 | C32: 8 | D32: 8.7 | E32: 8.6 | F32: 8.7 | G32: 0.2428571429
A33: Development Bank of Southern Africa (DBSA)j | B33: N/A | C33: N/A | D33: N/A | E33: 13.2 | F33: 9.5 | G33: —
A34: Dis-Chem Pharmacies | B34: N/A | C34: 25 | D34: 26 | E34: 17.1 | F34: 12.5 | G34: —
A35: Engen | B35: N/A | C35: 17 | D35: 15 | E35: 27 | F35: 33 | G35: —
A36: EOH Holdings | B36: N/A | C36: 10.7 | D36: 11.1 | E36: 9.4 | F36: 6.7 | G36: —
A37: Eskom Holdings | B37: 103.6 | C37: 123.8 | D37: 67.4 | E37: 75.1 | F37: 63 | G37: -0.3918918919
A38: Exemplar REIT | B38: N/A | C38: N/A | D38: N/A | E38: 3.4 | F38: 5.2 | G38: —
A39: Exxaro Resourcesj | B39: 63 | C39: 95 | D39: 143 | E39: 57.2 | F39: 167.9 | G39: 1.665079365
A40: Famous Brands | B40: 15.9 | C40: 21.1 | D40: 15 | E40: 3.7 | F40: 16.9 | G40: 0.06289308176
A41: Glencore Xstrata | B41: 1039.8 | C41: 1300.4 | D41: 1563.6 | E41: 1005 | F41: 1472 | G41: 0.4156568571
A42: Gold Fields | B42: 47.2 | C42: 317.9 | D42: 254.3 | E42: 33.5 | F42: 88 | G42: 0.8644067797
A43: Grindrod | B43: 7.3 | C43: N/A | D43: 1.9 | E43: 8 | F43: 6.7 | G43: -0.08219178082
A44: Growthpoint Properties | B44: 15.1 | C44: 44.1 | D44: 44.1 | E44: 47.9 | F44: 51 | G44: 2.377483444
A45: Harmony Gold Mining Company | B45: 6 | C45: 76 | D45: 10.8 | E45: 18 | F45: 27 | G45: 3.5
A46: HomeChoice International | B46: N/A | C46: N/A | D46: N/A | E46: 5 | F46: 8.6 | G46: —
A47: Impala Bafokeng | B47: N/A | C47: N/A | D47: N/A | E47: 99.9 | F47: 61.4 | G47: —
A48: Impala Platinum Holdings | B48: 105 | C48: 113 | D48: 126 | E48: 170 | F48: 207 | G48: 0.9714285714
A49: Industrial Development Corporation of South Africa | B49: 40 | C49: 46.6 | D49: 46.6 | E49: 33.7 | F49: 42.6 | G49: 0.065
A50: Investec | B50: 62.8 | C50: 184.1 | D50: 162.8 | E50: 180.5 | F50: 218.9 | G50: 2.48566879
A51: Italtile | B51: N/A | C51: N/A | D51: N/A | E51: 57 | F51: 85.2 | G51: —
A52: Johannesburg Stock Exchange | B52: 8.2 | C52: N/A | D52: N/A | E52: 9 | F52: 9.2 | G52: 0.1219512195
A53: Kaap Agri | B53: N/A | C53: N/A | D53: N/A | E53: 4.6 | F53: 5.9 | G53: —
A54: Kap Industrial Holdings | B54: N/A | C54: N/A | D54: N/A | E54: 14 | F54: 25 | G54: —
A55: Kumba Iron Ore | B55: 175 | C55: 115.6 | D55: 263.6 | E55: 257.5 | F55: 399.5 | G55: 1.282857143
A56: Libstar Holdings | B56: N/A | C56: 16.8 | D56: 21 | E56: 17.5 | F56: 18.1 | G56: —
A57: Life Healthcare Group Holdings | B57: 76.8 | C57: 106 | D57: 65 | E57: 92.1 | F57: 107 | G57: 0.3932291667
A58: Merafe Resources | B58: 30 | C58: 85.2 | D58: 49 | E58: 18.1 | F58: 27.8 | G58: -0.07333333333
A59: Metair Investments | B59: 21.4 | C59: 18.9 | D59: 13.8 | E59: 20.6 | F59: 18.6 | G59: -0.1308411215
A60: MMI Holdings | B60: 32.9 | C60: 36 | D60: 27.5 | E60: 27.5 | F60: 43.5 | G60: 0.3221884498
A61: Mondi Group | B61: 99 | C61: 211.9 | D61: 216.1 | E61: 175.5 | F61: 153.1 | G61: 0.5464646465
A62: Motus Holdings | B62: N/A | C62: 28 | D62: 18.6 | E62: 30 | F62: 26.5 | G62: —
A63: Mpact | B63: 6.3 | C63: N/A | D63: N/A | E63: 11.8 | F63: 11.8 | G63: 0.873015873
A64: Mr Price Group | B64: 27.6 | C64: 39 | D64: 25.8 | E64: 37 | F64: 23 | G64: -0.1666666667
A65: MTN Group | B65: 335.4 | C65: 189.5 | D65: 168 | E65: 54 | F65: 63.6 | G65: -0.8103756708
A66: Murray & Roberts Holdings | B66: 23.1 | C66: 8.8 | D66: 15.3 | E66: 12.6 | F66: 6.9 | G66: -0.7012987013
A67: MultiChoice Africak | B67: 56 | C67: 211 | D67: 420 | E67: 296 | F67: 284 | G67: 4.071428571
A68: Nedbank Group | B68: 136 | C68: 130 | D68: 103 | E68: 121.7 | F68: 127 | G68: -0.06617647059
A69: Netcare | B69: 25 | C69: 31 | D69: 18 | E69: 31 | F69: 35 | G69: 0.4
A70: Northam Platinum | B70: N/A | C70: 44.4 | D70: 8.1 | E70: 9.7 | F70: 12.8 | G70: —
A71: Oceana Group | B71: 4.9 | C71: N/A | D71: 7.4 | E71: 6.3 | F71: 4.7 | G71: -0.04081632653
A72: Omnia Holdings | B72: N/A | C72: 20.4 | D72: 24.3 | E72: 28.5 | F72: 46 | G72: —
A73: Pan African Resources | B73: 20.8 | C73: 20.4 | D73: 28.4 | E73: 28.9 | F73: 46 | G73: =(F73-B73)/B73 -> 1.211538462
A74: Pepkor Holdingsl | B74: N/A | C74: 45 | D74: 40.7 | E74: 57.3 | F74: 64.6 | G74: —
A75: Pick n Paym | B75: 41.5 | C75: 34 | D75: 41.3 | E75: 38 | F75: 46.6 | G75: 0.1228915663
A76: Raubex Group | B76: 4.3 | C76: 4.9 | D76: 3.8 | E76: 5.2 | F76: 6 | G76: 0.3953488372
A77: RCL Foods | B77: 10 | C77: 9 | D77: 7.8 | E77: 11.8 | F77: 10.9 | G77: 0.09
A78: Redefine Properties | B78: N/A | C78: 8 | D78: 5.2 | E78: 12.6 | F78: 12.2 | G78: —
A79: Remgro | B79: 18 | C79: 25 | D79: 25 | E79: 22 | F79: 26 | G79: 0.4444444444
A80: Reunert | B80: 14 | C80: 10 | D80: 7 | E80: 7 | F80: 8 | G80: -0.4285714286
A81: RFG Holdings Limited | B81: N/A | C81: N/A | D81: N/A | E81: 3.7 | F81: 5.1 | G81: —
A82: Sanlam | B82: 74 | C82: 58 | D82: 47 | E82: 82 | F82: 130 | G82: 0.7567567568
A83: Sasol | B83: 577 | C83: 1092.6 | D83: 526.2 | E83: 743.3 | F83: 857.3 | G83: 0.4857885615
A84: Shoprite Holdingsn | B84: 125.1 | C84: 136 | D84: 274 | E84: 335 | F84: 409 | G84: 2.269384492
A85: Sibanye Gold | B85: 691 | C85: N/A | D85: N/A | E85: 346.5 | F85: 362.4 | G85: -0.4755426918
A86: South32 | B86: N/A | C86: N/A | D86: N/A | E86: 162.2 | F86: 48.6 | G86: —
A87: Stadio Holdingso | B87: N/A | C87: N/A | D87: N/A | E87: 14 | F87: 19 | G87: —
A88: Standard Bank Group | B88: 97.5 | C88: 84 | D88: 124.2 | E88: 158.9 | F88: 125.4 | G88: 0.2861538462
A89: Sun International | B89: 26 | C89: 29 | D89: 7.1 | E89: 14 | F89: 27.6 | G89: 0.06153846154
A90: Super Groupp | B90: 7.8 | C90: 20.6 | D90: 17.7 | E90: 21.1 | F90: 26.4 | G90: 2.384615385
A91: Telkom SA SOC Ltd | B91: 47 | C91: 75 | D91: 46.3 | E91: 76.8 | F91: 64 | G91: 0.3617021277
A92: The Foschini Group | B92: 7 | C92: 26.2 | D92: 13.9 | E92: 27 | F92: 30.2 | G92: 3.314285714
A93: Tiger Brands | B93: 24 | C93: 27.4 | D93: 32 | E93: 22.9 | F93: 25.8 | G93: 0.075
A94: Transaction Capital | B94: N/A | C94: N/A | D94: N/A | E94: 14 | F94: 12.7 | G94: —
A95: Transnet | B95: 248 | C95: 163.4 | D95: 112.2 | E95: 139.6 | F95: 109 | G95: -0.560483871
A96: Truworths International | B96: 2.6 | C96: 10.9 | D96: 7.5 | E96: 4.6 | F96: 4.9 | G96: 0.8846153846
A97: Wilson Bayly Holmes-Ovcon | B97: N/A | C97: 5 | D97: 5 | E97: 5 | F97: 5 | G97: —
A98: Woolworths Holdingsq | B98: 693 | C98: 854 | D98: 918 | E98: 970 | F98: 1031 | G98: 0.4877344877
A99: Total | B99: =SUM(B9:B98) -> 7444.6 | C99: 11185.3 | D99: =SUM(D8:D98) -> 8810.1 | E99: =SUM(E8:E98) -> 8767.5 | F99: =SUM(F8:F98) -> 10696 | G99: =(F99-B99)/B99 -> 0.4367460978
A100: Source: Trialogue, The Business in Society Handbook: A Trialogue publication, November 2021, pp100-104; November 2023, pp73-77
A101: a Incorporating data from 1 July 2015 to 30 June 2016.
A102: b Incorporating data from 1 July 2019 to 30 June 2020.
A103: c Incorporating data from 1 July 2020 to 30 June 2021.
A104: d Incorporating data from 1 July 2021 to 30 June 2022.
A105: e Incorporating data from 1 July 2022 to 30 June 2023.
A106: f Includes bursaries.
A107: g Total spend includes non-RSA operations.
A108: h Sum of reported spend on various initiatives.
A109: i Includes bursaries.
A110: j Sum of reported spend on various initiatives.
A111: k Includes free advertisements.
A112: l Total spend includes non-RSA operations.
A113: m Sum of reported spend on various initiatives.
A114: n 2023 spend includes surplus donations.
A115: o Includes bursaries.
A116: p Total spend includes non-RSA operations.
A117: q R856 million was surplus food donated; total spend includes non-RSA operations

Sheet CSI expend.bydevel.sect.98-23
B2: CSI expenditure by development sector, 1998-2023
B4: Development sector | C4: 1998 | D4: 2019 | E4: 2020 | F4: 2021 | G4: 2022 | H4: 2023 | I4: Change 1998-2023
B5: Education | C5: 0.54 | D5: 0.5 | E5: 0.5 | F5: 0.39 | G5: 0.44 | H5: 0.48 | I5: =(H5-C5)/C5 -> -0.1111111111
B6: Social and community developmenta | C6: 0.12 | D6: 0.15 | E6: 0.15 | F6: 0.17 | G6: 0.13 | H6: 0.13 | I6: =(H6-C6)/C6 -> 0.08333333333
B7: Health | C7: 0.08 | D7: 0.07 | E7: 0.09 | F7: 0.08 | G7: 0.07 | H7: 0.06 | I7: -0.25
B8: Food security and agriculture | C8: N/A | D8: 0.09 | E8: 0.07 | F8: 0.1 | G8: 0.1 | H8: 0.09 | I8: —
B9: Entrepreneur and small business supportb | C9: 0.11 | D9: 0.06 | E9: 0.05 | F9: 0.06 | G9: 0.08 | H9: 0.08 | I9: -0.2727272727
B10: Sports development | C10: 0.03 | D10: 0.02 | E10: 0.02 | F10: 0.01 | G10: 0.02 | H10: 0.01 | I10: -0.6666666667
B11: Environment | C11: 0.03 | D11: 0.05 | E11: 0.04 | F11: 0.04 | G11: 0.03 | H11: 0.03 | I11: 0
B12: Housing and living conditions | C12: 0.07 | D12: 0.01 | E12: 0.01 | F12: 0.01 | G12: 0.03 | H12: 0.04 | I12: -0.4285714286
B13: Safety and security | C13: N/A | D13: N/A | E13: 0.01 | F13: 0.01 | G13: N/A | H13: 0.01 | I13: —
B14: Disaster relief | C14: N/A | D14: 0.02 | E14: 0.04 | F14: 0.09 | G14: 0.08 | H14: 0.06 | I14: —
B15: Arts and culture | C15: 0.02 | D15: 0.01 | E15: 0.01 | F15: 0.01 | G15: 0.01 | H15: 0.01 | I15: -0.5
B16: Social justice and advocacy | C16: N/A | D16: N/A | E16: N/A | F16: 0.01 | G16: 0.01 | H16: — | I16: —
B17: Non-sector specific donations and grants | C17: N/A | D17: 0.01 | E17: N/A | F17: N/A | G17: N/A | H17: N/A | I17: —
B18: Other | C18: N/A | D18: 0.01 | E18: 0.01 | F18: 0.01 | G18: N/A | H18: N/A | I18: —
B19: Totalc | C19: =(C5+C6+C7+C9+C10+C11+C12+C15) -> 1 | D19: =(D5+D6+D7+D8+D9+D10+D11+D12+D14+D15+D17+D18) -> 1 | E19: =(E5+E6+E7+E8+E9+E10+E11+E12+E13+E14+E15+E18) -> 1 | F19: 1 | G19: 1 | H19: =SUM(H5:H18) -> 1 | I19: —
B20: Source: Trialogue, The Business in Society Handbook: A Trialogue publication, November 2023, p50
B21: a Community and rural development, and welfare in 1998.
B22: b Job creation in 1998.
B23: c Figures may not add up to 100%, owing to rounding.
B24: N/A — Not available.

Sheet Soci.Comm.CSI expenditure.14-23
B2: CSI expenditure on social and community development by type of support, 2014-23
B4: Type of support | C4: 2014 | D4: 2019 | E4: 2020 | F4: 2021 | G4: 2022 | H4: 2023 | I4: Change 2014-23
B5: Support for welfare organisations | C5: 0.51 | D5: 0.42 | E5: 0.46 | F5: 0.48 | G5: 0.37 | H5: 0.4 | I5: =(H5-C5)/C5 -> -0.2156862745
B6: Infrastructure, facilities and equipment | C6: 0.19 | D6: 0.21 | E6: 0.19 | F6: 0.23 | G6: 0.28 | H6: 0.13 | I6: =(H6-C6)/C6 -> -0.3157894737
B7: Job creation programmes | C7: 0.15 | D7: 0.22 | E7: 0.21 | F7: 0.18 | G7: 0.22 | H7: 0.3 | I7: 1
B8: Awareness programmes | C8: 0.08 | D8: 0.1 | E8: 0.12 | F8: 0.1 | G8: 0.07 | H8: 0.12 | I8: 0.5
B9: Other interventions | C9: 0.07 | D9: 0.05 | E9: 0.02 | F9: 0.01 | G9: 0.06 | H9: 0.05 | I9: -0.2857142857
B10: Total | C10: 1 | D10: =SUM(D5:D9) -> 1 | E10: =SUM(E5:E9) -> 1 | F10: =SUM(F5:F9) -> 1 | G10: =SUM(G5:G9) -> 1 | H10: =SUM(H5:H9) -> 1 | I10: —
B11: Source: Trialogue, The Business in Society Handbook: A Trialogue publication, November 2023, p132

Sheet CSI expenditurebygroup.14-23
B2: CSI expenditure on social and community development by target group, 2014-23
B4: Target group | C4: 2014 | D4: 2019 | E4: 2020 | F4: 2021 | G4: 2022 | H4: 2023 | I4: Change 2014-23
B5: Orphans and vulnerable children | C5: 0.33 | D5: 0.23 | E5: 0.14 | F5: 0.11 | G5: 0.14 | H5: 0.15 | I5: =(H5-C5)/C5 -> -0.5454545455
B6: Youth | C6: 0 | D6: 0.27 | E6: 0.39 | F6: 0.32 | G6: 0.42 | H6: 0.4 | I6: —
B7: People with HIV/AIDS | C7: 0.12 | D7: 0.07 | E7: 0.06 | F7: 0.03 | G7: 0.01 | H7: 0.01 | I7: =(H7-C7)/C7 -> -0.9166666667
B8: Unemployed people | C8: 0.08 | D8: 0.1 | E8: 0.11 | F8: 0.14 | G8: 0.1 | H8: 0.19 | I8: 1.375
B9: People with disabilities | C9: 0.08 | D9: 0.07 | E9: 0.08 | F9: 0.09 | G9: 0.07 | H9: 0.08 | I9: 0
B10: Non-specific beneficiaries | C10: 0.11 | D10: N/A | E10: N/A | F10: N/A | G10: N/A | H10: N/A | I10: —
B11: Victims of violence and abuse | C11: 0.06 | D11: 0.05 | E11: 0.04 | F11: 0.06 | G11: 0.07 | H11: 0.06 | I11: 0
B12: The elderly | C12: 0.04 | D12: 0.03 | E12: 0.03 | F12: 0.03 | G12: 0.06 | H12: 0.04 | I12: 0
B13: Homeless people | C13: 0.03 | D13: 0.01 | E13: 0.01 | F13: 0.01 | G13: 0.02 | H13: 0.01 | I13: -0.6666666667
B14: Prisoners and former prisoners | C14: 0 | D14: N/A | E14: 0.01 | F14: N/A | G14: N/A | H14: 0.02 | I14: —
B15: Animals | C15: 0.02 | D15: 0.01 | E15: 0.01 | F15: N/A | G15: 0.01 | H15: 0.01 | I15: -0.5
B16: Other beneficiaries | C16: 0.13 | D16: 0.16 | E16: 0.12 | F16: 0.21 | G16: 0.1 | H16: 0.03 | I16: -0.7692307692
B17: Total | C17: =SUM(C5:C16) -> 1 | D17: =(D5+D6+D7+D8+D9+D11+D12+D13+D15+D16) -> 1 | E17: =SUM(E5:E16) -> 1 | F17: =(F5+F6+F7+F8+F9+F11+F12+F13+F16) -> 1 | G17: =SUM(G5:G16) -> 1 | H17: =SUM(H5:H16) -> 1 | I17: —
B18: Source: Trialogue, The Business in Society Handbook: A Trialogue publication, November 2023, p133
B19: N/A — Not available.

Sheet CSI expend on education.10-23
B2: CSI expenditure on education, 2010-23
B4: Education level | C4: 2010 | D4: 2019 | E4: 2020 | F4: 2021 | G4: 2022 | H4: 2023 | I4: Change2010-23
B5: Early Childhood Development | C5: 0.16 | D5: 0.17 | E5: 0.14 | F5: 0.13 | G5: 0.27 | H5: 0.26 | I5: =(H5-C5)/C5 -> 0.625
B6: General education | C6: 0.28 | D6: 0.22 | E6: 0.24 | F6: 0.21 | G6: 0.19 | H6: 0.2 | I6: =(H6-C6)/C6 -> -0.2857142857
B7: Further education and training | C7: 0.29 | D7: 0.28 | E7: 0.27 | F7: 0.31 | G7: 0.19 | H7: 0.23 | I7: -0.2068965517
B8: Tertiary education | C8: 0.24 | D8: 0.28 | E8: 0.33 | F8: 0.29 | G8: 0.3 | H8: 0.27 | I8: 0.125
B9: Adult education | C9: 0.03 | D9: 0.01 | E9: 0.02 | F9: 0.03 | G9: 0.01 | H9: 0.01 | I9: -0.6666666667
B10: Other | C10: N/A | D10: N/A | E10: N/A | F10: 0.03 | G10: 0.04 | H10: 0.03 | I10: —
B11: Source: Trialogue, The Business in Society Handbook: A Trialogue publication, November 2023, p126
B12: N/A — Not available.

Sheet CSI expend on health.10.-23
B2: CSI expenditure on health, 2010-23
B4: Health category | C4: 2010 | D4: 2019 | E4: 2020 | F4: 2021 | G4: 2022 | H4: 2023 | I4: Change 2010-23
B5: Primary healthcare | C5: 0.46 | D5: 0.7 | E5: 0.77 | F5: 0.71 | G5: 0.82 | H5: 0.81 | I5: =(H5-C5)/C5 -> 0.7608695652
B6: Secondary healthcare | C6: 0.17 | D6: 0.11 | E6: 0.15 | F6: 0.15 | G6: 0.06 | H6: 0.08 | I6: =(H6-C6)/C6 -> -0.5294117647
B7: Tertiary healthcare | C7: 0.14 | D7: 0.11 | E7: 0.08 | F7: 0.11 | G7: 0.12 | H7: 0.07 | I7: -0.5
B8: Other types of healthcare | C8: 0.23 | D8: 0.08 | E8: 0 | F8: 0.03 | G8: 0 | H8: 0.04 | I8: -0.8260869565
B9: Source: Trialogue, The Business in Society Handbook: A Trialogue publication, November 2023, p150

Sheet CSI expend.on.housing.14-23
B2: CSI expenditure on housing and living conditions, 2014-23
B4: Housing/living conditions | C4: 2014 | D4: 2019 | E4: 2020 | F4: 2021 | G4: 2022 | H4: 2023 | I4: Change 2014-23
B5: Facilitating housing development | C5: 0.13 | D5: 0.16 | E5: 0.31 | F5: 0.06 | G5: N/A | H5: 0.1 | I5: =(H5-C5)/C5 -> -0.2307692308
B6: Building houses | C6: 0.73 | D6: 0.3 | E6: 0.27 | F6: 0.14 | G6: 0.3 | H6: 0.2 | I6: =(H6-C6)/C6 -> -0.7260273973
B7: Water and sanitation | C7: 0 | D7: 0.24 | E7: 0.16 | F7: 0.51 | G7: 0.42 | H7: 0.29 | I7: —
B8: Materials supply | C8: 0.14 | D8: 0.12 | E8: 0.03 | F8: N/A | G8: 0.01 | H8: 0.1 | I8: -0.2857142857
B9: Energy/energy-efficiency initiatives | C9: 0 | D9: 0.14 | E9: 0.11 | F9: 0.03 | G9: 0.1 | H9: 0.1 | I9: —
B10: Other | C10: 0 | D10: N/A | E10: 0.12 | F10: 0.19 | G10: 0.17 | H10: — | I10: —
B11: Maintenance | C11: N/A | D11: 0.04 | E11: N/A | F11: 0.04 | G11: 0.17 | H11: 0.01 | I11: —
B12: Source: Trialogue, The Business in Society Handbook: A Trialogue publication, November 2023, p154
B13: N/A — Not available.

Sheet CSI exp on entrepr.busin.14-23
B2: CSI expenditure on entrepreneur and small business support, 2014-23
B4: Entrepreneur/business category | C4: 2014 | D4: 2019 | E4: 2020 | F4: 2021 | G4: 2022 | H4: 2023 | I4: Change 2014-23
B5: Skills development for entrepreneurs | C5: 0.64 | D5: 0.7 | E5: 0.59 | F5: 0.62 | G5: 0.49 | H5: 0.75 | I5: =(H5-C5)/C5 -> 0.171875
B6: Providing finance | C6: 0.24 | D6: 0.11 | E6: 0.21 | F6: 0.13 | G6: 0.18 | H6: 0.03 | I6: =(H6-C6)/C6 -> -0.875
B7: Infrastructure, facilities and equipment | C7: 0.07 | D7: 0.17 | E7: 0.19 | F7: 0.17 | G7: 0.24 | H7: 0.11 | I7: 0.5714285714
B8: Non-specific general donations | C8: 0.01 | D8: N/A | E8: 0.01 | F8: 0.03 | G8: 0.06 | H8: 0.11 | I8: 10
B9: Other interventions | C9: 0.04 | D9: 0.02 | E9: 0 | F9: 0.05 | G9: 0.03 | H9: — | I9: —
B10: Source: Trialogue, The Business in Society Handbook: A Trialogue publication, November 2023, p142

Sheet Non-profit organisations

Sheet Non-profit organisations (NPOs)
B2: Non-Profit Organisations (NPOs)
B4: The Non-profit Organisations Act of 1997 established an administrative and regulatory framework within which Non-Profit Organisations (NPOs) can function through a registration facility.
B5: An NPO is defined as a trust, company, or other association of persons established for a public purpose and whose income and property are not distributable to its members or office-bearers except as reasonable compensation for services rendered. Non-Governmental Organisations (NGOs) and Community-Based Organisations (CBOs) are collectively known as NPOs.
B6: The Department of Social Development (DSD) is responsible for the implementation of the NPO Act. In order to be registered, NPOs need to apply to the DSD.

Sheet Registered NPOs
C2: Registered NPOs, 2020-24
C4: Status | D4: 2020 | E4: 2021 | F4: 2022 | G4: 2023 | H4: 2024
C5: Registered | D5: 231445 | E5: 242611 | F5: 259802 | G5: 275275 | H5: 289432
C6: De-registered | D6: 367 | E6: 415 | F6: 451 | G6: 494 | H6: 550
C7: Applications in process | D7: 5081 | E7: 5022 | F7: 7565 | G7: 3778 | H7: 3279
B8: Source: DSD. www.dsd.gov.za, accessed 20 May 2024

Sheet NPO income by income source
A2: NPO income share by income sourcea, 2018-23
B4: 2018 | C4: 2019 | D4: 2020 | E4: 2021 | F4: 2022 | G4: 2023 | H4: Change 2018-23
A5: Source of income
A6: South African companies | B6: 0.24 | C6: 0.29 | D6: 0.27 | E6: 0.28 | F6: 0.27 | G6: 0.27 | H6: =(G6-B6)/B6 -> 0.125
A7: South African private individuals | B7: 0.2 | C7: 0.17 | D7: 0.12 | E7: 0.11 | F7: 0.12 | G7: 0.14 | H7: =(G7-B7)/B7 -> -0.3
A8: South African trusts/foundations | B8: 0.09 | C8: 0.11 | D8: 0.16 | E8: 0.09 | F8: 0.2 | G8: 0.13 | H8: 0.4444444444
A9: South African government | B9: 0.14 | C9: 0.1 | D9: 0.07 | E9: 0.11 | F9: 0.1 | G9: 0.12 | H9: -0.1428571429
A10: Foreign private donors | B10: 0.1 | C10: 0.1 | D10: 0.14 | E10: 0.11 | F10: 0.07 | G10: 0.1 | H10: 0
A11: The National Lotteries Board | B11: 0.04 | C11: 0.03 | D11: 0.03 | E11: 0.03 | F11: 0.01 | G11: 0.02 | H11: -0.5
A12: South African intermediary NPOs | B12: 0.01 | C12: 0.02 | D12: 0.03 | E12: 0.05 | F12: 0.03 | G12: 0.02 | H12: 1
A13: Foreign Government donors | B13: 0.03 | C13: 0.03 | D13: 0.03 | E13: 0.04 | F13: 0.04 | G13: 0.04 | H13: 0.3333333333
A14: Self-generated | B14: 0.14 | C14: 0.1 | D14: 0.1 | E14: 0.12 | F14: 0.12 | G14: 0.12 | H14: -0.1428571429
A15: Investment outcome | B15: 0.01 | C15: 0.02 | D15: 0.01 | E15: 0.01 | F15: 0.01 | G15: 0.03 | H15: 2
A16: Debt | B16: 0 | C16: 0.01 | D16: 0.01 | E16: — | F16: — | G16: — | H16: —
A17: Other | B17: 0 | C17: 0.02 | D17: 0.03 | E17: 0.04 | F17: 0.03 | G17: 0.01 | H17: —
A18: Total | B18: =SUM(B6:B17) -> 1 | C18: =SUM(C6:C17) -> 1 | D18: =SUM(D6:D17) -> 1 | E18: 1 | F18: =SUM(F6:F17) -> 1 | G18: =SUM(G6:G17) -> 1 | H18: —
A19: Source: Trialogue, The Business in Society Handbook: A Trialogue publication, November 2023, p237
A20: a Trialogue conducted primary research with 120 NPOs during 2021 to provide and overview of NPO income in South Africa.

Sheet NPO expenditure by sector
A2: NPO expenditure by sectora, 2019-23
A4: Sector | B4: 2019 | C4: 2020 | D4: 2021 | E4: 2022 | F4: 2023 | G4: Change 2019-23
A5: Education | B5: 0.32 | C5: 0.39 | D5: 0.33 | E5: 0.34 | F5: 0.33 | G5: =(F5-B5)/B5 -> 0.03125
A6: Social and community development | B6: 0.31 | C6: 0.26 | D6: 0.25 | E6: 0.28 | F6: 0.31 | G6: =(F6-B6)/B6 -> 0
A7: Health | B7: 0.13 | C7: 0.11 | D7: 0.05 | E7: 0.1 | F7: 0.12 | G7: -0.07692307692
A8: Entrepreneur and small business support | B8: 0.04 | C8: 0.07 | D8: 0.05 | E8: 0.04 | F8: 0.07 | G8: 0.75
A9: Food security and agriculture | B9: 0.06 | C9: 0.04 | D9: 0.09 | E9: 0.05 | F9: 0.04 | G9: -0.3333333333
A10: Social justice and advocacy | B10: 0.03 | C10: 0.03 | D10: 0.03 | E10: 0.04 | F10: 0.05 | G10: 0.6666666667
A11: Disaster Relief | B11: 0 | C11: 0.03 | D11: 0.02 | E11: 0.02 | F11: 0.01 | G11: —
A12: Arts and culture | B12: 0.02 | C12: 0.02 | D12: 0.04 | E12: 0.01 | F12: 0.02 | G12: 0
A13: Environment | B13: 0.02 | C13: 0.02 | D13: 0.03 | E13: 0.02 | F13: 0.01 | G13: -0.5
A14: Sports development | B14: 0.02 | C14: 0.01 | D14: 0.01 | E14: 0.03 | F14: 0.01 | G14: -0.5
A15: Housing and living conditions | B15: 0.01 | C15: 0.01 | D15: — | E15: — | F15: 0.01 | G15: 0
A16: Safety and security | B16: 0.01 | C16: 0.01 | D16: 0.02 | E16: — | F16: 0.01 | G16: 0
A17: Other | B17: 0.03 | C17: 0 | D17: 0.08 | E17: 0.06 | F17: 0.01 | G17: -0.6666666667
A18: Source: Trialogue, The Business in Society Handbook: A Trialogue publication, November 2023, p51
A19: a Trialogue conducted primary research with 120 NPOs during 2020 to provide and overview of NPO income in South Africa.

Sheet PENSION FUNDS

Sheet Number of retirement funds
A2: PENSION FUNDS
A4: Number of privately administered and underwritten retirement funds, 2014-22
A6: Type of fund | B6: 2014 | C6: 2016 | D6: 2017 | E6: 2018 | F6: 2021 | G6: 2022
A7: Privately Administered Fundsa | B7: 2966 | C7: 2973 | D7: 2982 | E7: 2970 | F7: 2946 | G7: 2920
A8: Underwritten Fundsb | B8: 2175 | C8: 2162 | D8: 2167 | E8: 2154 | F8: 2144 | G8: 2150
A9: Total | B9: =SUM(B7:B8) -> 5141 | C9: 5144 | D9: 5158 | E9: =SUM(E7:E8) -> 5124 | F9: =SUM(F7:F8) -> 5090 | G9: =SUM(G7:G8) -> 5070
A10: Source: Financial Sector Conduct Authority (FSCA), Annual Report 2021/22, 2023, p66
A11: a Funds investing their assets, on their own behalf, with bodies and institutions in the public and private sectors of the economy.
A12: b Funds operating exclusively by means of insurance policies issued by registered insurers in South Africa.

Sheet UNEMPLOYMENT INSURANCE.

Sheet Unemployment insurance
A2: UNEMPLOYMENT INSURANCE
A4: The Unemployment Insurance Fund (UIF) provides benefits to workers who become unemployed, become ill, go on maternity leave or take leave when a minor child is adopted, and to the spouse, life partner, or dependent children upon the death of a contributor.
A5: One can claim:
A6: • unemployment benefits if one has been dismissed or retrenched or if one’s contract has expired (a domestic worker can claim from the UIF if she works for more than one employer and loses her job with one of them or if her employer dies);
A7: • illness benefits if one is off work owing to illness for two weeks;
A8: • maternity benefits if one is pregnant and takes maternity leave;
A9: • adoption benefits if one legally adopts a child younger than two years and has to leave work to look after that child (only one of the adopting parents can apply for benefits) or if they are the wife/husband or minor child of a contributor.
A10: The following employees do not qualify to claim from the UIF:
A11: • employees working less than 24 hours per month;
A12: • pupils;
A13: • public servants;
A14: • foreigners working on contract;
A15: • employees who receive an old-age pension; or
A16: • employees who earn based solely on commission.
A17: Employees cannot claim from the UIF if they:
A18: • receive benefits from the Compensation Fund;
A19: • receive benefits from an unemployment fund established under the Labour Relations Act;
A20: • are suspended from claiming, owing to fraud;
A21: • have quit their job;
A22: • do not report at set dates and times; or
A23: • refuse training and/or advice offered by UIF staff.
A24: Both the employer and the employee contribute 1% of the employee’s salary, making the UIF contribution 2% of an employee’s salary. For employees earning above R14 872 a month both the employer and employee are only expected to contribute a capped amount of R148.72 per month.
A25: Employees must claim within six months after they have stopped working and can claim from the day they stop working until their benefits are used up or they start working again. Tax is not payable on the benefits.

Sheet UIF

Sheet EmployeescontributingtoUIF.8-22
C2: Employees contributing to the Unemployment Insurance Fund (UIF), 2008-22
C4: Year | D4: People contributing to UIF | E4: Total employed population | F4: Proportion contributing to UIF
C5: 2008 | D5: 6858000 | E5: 12316000 | F5: 0.5568366353
C6: 2011 | D6: 6814000 | E6: 11901000 | F6: 0.572556928
C7: 2012 | D7: 7279000 | E7: 12240000 | F7: 0.5946895425
C8: 2013 | D8: 7815000 | E8: 12712000 | F8: 0.6147734424
C9: 2014 | D9: 7976000 | E9: 13065000 | F9: 0.6104860314
C10: 2015 | D10: 8080000 | E10: 13499000 | F10: 0.5985628565
C11: 2016 | D11: 8119000 | E11: 13459000 | F11: 0.603239468
C12: 2017 | D12: 8278000 | E12: 13774000 | F12: 0.6009873675
C13: 2018 | D13: 8369000 | E13: 13914000 | F13: 0.6014805232
C14: 2019 | D14: 8389000 | E14: 13749000 | F14: =(D14/E14) -> 0.6101534657
C15: 2020 | D15: 7989000 | E15: 12612000 | F15: =(D15/E15) -> 0.6334443387
C16: 2021 | D16: 7753000 | E16: 12259000 | F16: =(D16/E16) -> 0.6324333143
C17: 2022 | D17: 7962000 | E17: 12973000 | F17: =(D17/E17) -> 0.6137362214
C18: Source: Stats SA, Labour market dynamics in South Africa 2022, Statistical release 02-11-02, 2023, p131
C20: For more information on the labour market, please refer to the Employment chapter.

Sheet UIF contribution 2010-22
A2: Employees contributing to the UIF, 2010-22
A4: UIF contribution | B4: 2010 | C4: 2016 | D4: 2017 | E4: 2018 | F4: 2019 | G4: 2020 | H4: 2021 | I4: 2022
A5: Yes | B5: 6593000 | C5: 8119000 | D5: 8278000 | E5: 8369000 | F5: 8389000 | G5: 7989000 | H5: 7753000 | I5: 7962000
B6: 0.566 | C6: 0.603 | D6: 0.601 | E6: =(E5/Total13914) -> 0.6014805232 | F6: =(F5/F11) -> 0.6101534657 | G6: =(G5/G11) -> 0.6334443387 | H6: =(H5/H11) -> 0.6324333143 | I6: =(I5/I11) -> 0.6137362214
A7: No | B7: 4938000 | C7: 5104000 | D7: 5241000 | E7: 5319000 | F7: 5104000 | G7: 4438000 | H7: 4325000 | I7: 4685000
B8: 0.424 | C8: 0.379 | D8: 0.38 | E8: =(E7/Total13914) -> 0.3822768435 | F8: =(F7/F11) -> 0.3712269983 | G8: =(G7/G11) -> 0.3518870917 | H8: =(H7/H11) -> 0.352802023 | I8: =(I7/I11) -> 0.3611346643
A9: Don't know | B9: 121000 | C9: 236000 | D9: 255000 | E9: 255001 | F9: 256000 | G9: 185000 | H9: 180000 | I9: 326000
B10: 0.01 | C10: 0.018 | D10: 0.019 | E10: =(E9/Total13914) -> 0.0183269369 | F10: =(F9/F11) -> 0.01861953597 | G10: =(G9/G11) -> 0.01466856962 | H10: =(H9/H11) -> 0.01468308997 | I10: =(I9/I11) -> 0.02512911431
A11: Total | B11: =SUM(B5:B9) -> 11652000.99 | C11: =SUM(C5:C9) -> 13459000.98 | D11: 13774000 | E11: 13914000 | F11: =(F5+F7+F9) -> 13749000 | G11: =(G5+G7+G9) -> 12612000 | H11: 12259000 | I11: =(I5+I7+I9) -> 12973000
A12: Source: Stats SA, Labour market dynamics in South Africa 2022, Statistical release 02-11-02, 2023, p131

Sheet Macros
A2: A | B2: HEAD 1 | C2: HELVETICA NEUE 21 pt
A4: B | B4: HEAD 2 | C4: Helvetica Neue 18 pt
A6: C | B6: HEAD 3 | C6: Helvetica Neue 16 pt
A8: D | B8: HEAD 4 | C8: Helvetica Neue 14 pt
A10: E | B10: HEAD 5 | C10: Lucia 12 pt
A12: F | B12: HEAD 6 | C12: Helvetica Neue 13 pt
A14: G | B14: HEAD 7 | C14: Helvetica Neue 12 pt
A16: H | B16: HEAD 8 | C16: Helvetica Neue 11 pt | D16: Source, Footnote, Text
